Department family,Entity,Date,Expense Type,Expense area,Supplier,Transaction number,AP Amount (�)
Department of Health,NHS Sheffield CCG,31/10/2017,C&M-PMS Contract Value,PRC DELEGATED CO-COMMISSIONING,ABBEY LANE SURGERY,19140806,"22,033.14"
Department of Health,NHS Sheffield CCG,31/10/2017,C&M-PMS Funding Differential Review,PRC DELEGATED CO-COMMISSIONING,ABBEY LANE SURGERY,19140806,"1,105.08"
Department of Health,NHS Sheffield CCG,31/10/2017,C&M-PMS Out of Hours Opt Outs,PRC DELEGATED CO-COMMISSIONING,ABBEY LANE SURGERY,19140806,9.38
Department of Health,NHS Sheffield CCG,31/10/2017,C&M-PMS PCO Other,PRC DELEGATED CO-COMMISSIONING,ABBEY LANE SURGERY,19140806,384.5
Department of Health,NHS Sheffield CCG,31/10/2017,C&M-PMS Prem Notional Rent,PRC DELEGATED CO-COMMISSIONING,ABBEY LANE SURGERY,19140806,"2,122.92"
Department of Health,NHS Sheffield CCG,31/10/2017,C&M-PMS Prem Rates,PRC DELEGATED CO-COMMISSIONING,ABBEY LANE SURGERY,19140806,700
Department of Health,NHS Sheffield CCG,31/10/2017,C&M-PMS QOF Aspiration,PRC DELEGATED CO-COMMISSIONING,ABBEY LANE SURGERY,19140806,"3,210.12"
Department of Health,NHS Sheffield CCG,31/10/2017,Cont Care-Physical Disab (65+),CHC ADULT FULLY FUNDED,ABBEYCARE NURSING,19228325,"49,782.90"
Department of Health,NHS Sheffield CCG,31/10/2017,Contract & Agency-Agency Int Mgr,BEREAVEMENT SERVICE,ATTAIN HEALTH MANAGEMENT SERVICES LTD,19453178,"30,858.00"
Department of Health,NHS Sheffield CCG,31/10/2017,Hotel And Accomodation Costs,BEREAVEMENT SERVICE,ATTAIN HEALTH MANAGEMENT SERVICES LTD,19453178,420
Department of Health,NHS Sheffield CCG,31/10/2017,Oth Travel Costs-Car Mileage,BEREAVEMENT SERVICE,ATTAIN HEALTH MANAGEMENT SERVICES LTD,19453178,651.68
Department of Health,NHS Sheffield CCG,31/10/2017,Recruitment Agency Fees,CONTRACT MANAGEMENT,AVENTIS SOLUTIONS LTD,19156805,"26,250.00"
Department of Health,NHS Sheffield CCG,31/10/2017,C&M-PMS Contract Value,PRC DELEGATED CO-COMMISSIONING,AVENUE MEDICAL CENTRE SHEFFIELD,19140804,"53,143.93"
Department of Health,NHS Sheffield CCG,31/10/2017,C&M-PMS Out of Hours Opt Outs,PRC DELEGATED CO-COMMISSIONING,AVENUE MEDICAL CENTRE SHEFFIELD,19140804,22.63
Department of Health,NHS Sheffield CCG,31/10/2017,C&M-PMS PCO Other,PRC DELEGATED CO-COMMISSIONING,AVENUE MEDICAL CENTRE SHEFFIELD,19140804,452.6
Department of Health,NHS Sheffield CCG,31/10/2017,C&M-PMS Prem Notional Rent,PRC DELEGATED CO-COMMISSIONING,AVENUE MEDICAL CENTRE SHEFFIELD,19140804,"5,546.67"
Department of Health,NHS Sheffield CCG,31/10/2017,C&M-PMS Prem Rates,PRC DELEGATED CO-COMMISSIONING,AVENUE MEDICAL CENTRE SHEFFIELD,19140804,875
Department of Health,NHS Sheffield CCG,31/10/2017,C&M-PMS QOF Aspiration,PRC DELEGATED CO-COMMISSIONING,AVENUE MEDICAL CENTRE SHEFFIELD,19140804,"6,441.78"
Department of Health,NHS Sheffield CCG,31/10/2017,Hcare Srv Rec Fdtn Trust-Contract Baseline,ACUTE COMMISSIONING,BARNSLEY HOSPITAL NHS FOUNDATION TRUST,19073128,"72,098.00"
Department of Health,NHS Sheffield CCG,31/10/2017,Hcare Srv Rec Fdtn Trust-Contract Baseline,ACUTE COMMISSIONING,BARNSLEY HOSPITAL NHS FOUNDATION TRUST,19113807,"72,098.00"
Department of Health,NHS Sheffield CCG,31/10/2017,C&M-PMS Contract Value,PRC DELEGATED CO-COMMISSIONING,BARNSLEY ROAD SURGERY,19140808,"21,360.14"
Department of Health,NHS Sheffield CCG,31/10/2017,C&M-PMS DES Extended Hours Access,PRC DELEGATED CO-COMMISSIONING,BARNSLEY ROAD SURGERY,19140808,"1,272.05"
Department of Health,NHS Sheffield CCG,31/10/2017,C&M-PMS Funding Differential Review,PRC DELEGATED CO-COMMISSIONING,BARNSLEY ROAD SURGERY,19140808,370.25
Department of Health,NHS Sheffield CCG,31/10/2017,C&M-PMS PCO Other,PRC DELEGATED CO-COMMISSIONING,BARNSLEY ROAD SURGERY,19140808,384.5
Department of Health,NHS Sheffield CCG,31/10/2017,C&M-PMS Prem Notional Rent,PRC DELEGATED CO-COMMISSIONING,BARNSLEY ROAD SURGERY,19140808,"2,652.17"
Department of Health,NHS Sheffield CCG,31/10/2017,C&M-PMS Prem Rates,PRC DELEGATED CO-COMMISSIONING,BARNSLEY ROAD SURGERY,19140808,629
Department of Health,NHS Sheffield CCG,31/10/2017,C&M-PMS QOF Aspiration,PRC DELEGATED CO-COMMISSIONING,BARNSLEY ROAD SURGERY,19140808,"2,500.90"
Department of Health,NHS Sheffield CCG,31/10/2017,C&M-GMS Global Sum,PRC DELEGATED CO-COMMISSIONING,BASLOW ROAD & SHOREHAM STREET SURGERIES,19389342,"93,544.95"
Department of Health,NHS Sheffield CCG,31/10/2017,C&M-GMS MPIG Correction Factor,PRC DELEGATED CO-COMMISSIONING,BASLOW ROAD & SHOREHAM STREET SURGERIES,19389342,438.64
Department of Health,NHS Sheffield CCG,31/10/2017,C&M-GMS Prem Notional Rent,PRC DELEGATED CO-COMMISSIONING,BASLOW ROAD & SHOREHAM STREET SURGERIES,19389342,"8,511.25"
Department of Health,NHS Sheffield CCG,31/10/2017,C&M-GMS Prem Rates,PRC DELEGATED CO-COMMISSIONING,BASLOW ROAD & SHOREHAM STREET SURGERIES,19389342,"2,062.00"
Department of Health,NHS Sheffield CCG,31/10/2017,C&M-GMS Prem Water Rates,PRC DELEGATED CO-COMMISSIONING,BASLOW ROAD & SHOREHAM STREET SURGERIES,19389342,290.31
Department of Health,NHS Sheffield CCG,31/10/2017,C&M-GMS QOF Aspiration,PRC DELEGATED CO-COMMISSIONING,BASLOW ROAD & SHOREHAM STREET SURGERIES,19389342,"10,284.12"
Department of Health,NHS Sheffield CCG,31/10/2017,Cont Care-Physical Disab (65+),CHC ADULT FULLY FUNDED,BC SHEFFIELD LTD,19262188,"35,793.31"
Department of Health,NHS Sheffield CCG,31/10/2017,Cont Care-Physical Disab (65+),CHC ADULT FULLY FUNDED,BC SHEFFIELD LTD,19433375,"34,638.69"
Department of Health,NHS Sheffield CCG,31/10/2017,C&M-PMS Contract Value,PRC DELEGATED CO-COMMISSIONING,BIRLEY HEALTH CENTRE,19140810,"60,905.90"
Department of Health,NHS Sheffield CCG,31/10/2017,C&M-PMS Funding Differential Review,PRC DELEGATED CO-COMMISSIONING,BIRLEY HEALTH CENTRE,19140810,"2,653.00"
Department of Health,NHS Sheffield CCG,31/10/2017,C&M-PMS PCO Other,PRC DELEGATED CO-COMMISSIONING,BIRLEY HEALTH CENTRE,19140810,452.6
Department of Health,NHS Sheffield CCG,31/10/2017,C&M-PMS Prem Notional Rent,PRC DELEGATED CO-COMMISSIONING,BIRLEY HEALTH CENTRE,19140810,"7,775.48"
Department of Health,NHS Sheffield CCG,31/10/2017,C&M-PMS QOF Aspiration,PRC DELEGATED CO-COMMISSIONING,BIRLEY HEALTH CENTRE,19140810,"8,879.62"
Department of Health,NHS Sheffield CCG,31/10/2017,Clinical&Medical-Independent Sector,ACUTE COMMISSIONING,BMI HEALTHCARE COLLECTIONS,19101865,"77,530.74"
Department of Health,NHS Sheffield CCG,31/10/2017,C&M-GMS Cost of Drugs -Prescribing,LOCAL ENHANCED SERVICES,BROOMHILL SURGERY,19407051,"1,731.55"
Department of Health,NHS Sheffield CCG,31/10/2017,C&M-GMS DES Learn Dsblty Hlth Chk,PRC DELEGATED CO-COMMISSIONING,BROOMHILL SURGERY,19407051,232
Department of Health,NHS Sheffield CCG,31/10/2017,C&M-GMS Global Sum,PRC DELEGATED CO-COMMISSIONING,BROOMHILL SURGERY,19407051,"60,904.48"
Department of Health,NHS Sheffield CCG,31/10/2017,C&M-GMS MPIG Correction Factor,PRC DELEGATED CO-COMMISSIONING,BROOMHILL SURGERY,19407051,753.01
Department of Health,NHS Sheffield CCG,31/10/2017,C&M-GMS PCO Locum Adop/Pat/Mat,PRC DELEGATED CO-COMMISSIONING,BROOMHILL SURGERY,19407051,"5,202.54"
Department of Health,NHS Sheffield CCG,31/10/2017,C&M-GMS Prem Cost Rent,PRC DELEGATED CO-COMMISSIONING,BROOMHILL SURGERY,19407051,"3,380.00"
Department of Health,NHS Sheffield CCG,31/10/2017,C&M-GMS Prem Notional Rent,PRC DELEGATED CO-COMMISSIONING,BROOMHILL SURGERY,19407051,"2,541.67"
Department of Health,NHS Sheffield CCG,31/10/2017,C&M-GMS Prem Rates,PRC DELEGATED CO-COMMISSIONING,BROOMHILL SURGERY,19407051,"1,794.00"
Department of Health,NHS Sheffield CCG,31/10/2017,C&M-GMS Prof Fees Prescribing,PRC DELEGATED CO-COMMISSIONING,BROOMHILL SURGERY,19407051,99.51
Department of Health,NHS Sheffield CCG,31/10/2017,C&M-GMS QOF Aspiration,PRC DELEGATED CO-COMMISSIONING,BROOMHILL SURGERY,19407051,"6,516.86"
Department of Health,NHS Sheffield CCG,31/10/2017,C&M-GMS IT Comm Servs -GP Practices,PRIMARY CARE IT,BT GLOBAL SERVICES,19376469,"26,381.65"
Department of Health,NHS Sheffield CCG,31/10/2017,Computer Software/License,CORPORATE COSTS & SERVICES,BT GLOBAL SERVICES,19376469,"4,654.32"
Department of Health,NHS Sheffield CCG,31/10/2017,C&M-GMS Cost of Drugs -Prescribing,LOCAL ENHANCED SERVICES,BUCHANAN ROAD SURGERY,19389345,62.62
Department of Health,NHS Sheffield CCG,31/10/2017,C&M-GMS Global Sum,PRC DELEGATED CO-COMMISSIONING,BUCHANAN ROAD SURGERY,19389345,"34,978.06"
Department of Health,NHS Sheffield CCG,31/10/2017,C&M-GMS MPIG Correction Factor,PRC DELEGATED CO-COMMISSIONING,BUCHANAN ROAD SURGERY,19389345,"1,965.76"
Department of Health,NHS Sheffield CCG,31/10/2017,C&M-GMS Prem Notional Rent,PRC DELEGATED CO-COMMISSIONING,BUCHANAN ROAD SURGERY,19389345,"2,595.83"
Department of Health,NHS Sheffield CCG,31/10/2017,C&M-GMS Prem Rates,PRC DELEGATED CO-COMMISSIONING,BUCHANAN ROAD SURGERY,19389345,839
Department of Health,NHS Sheffield CCG,31/10/2017,C&M-GMS Prof Fees Prescribing,PRC DELEGATED CO-COMMISSIONING,BUCHANAN ROAD SURGERY,19389345,23.14
Department of Health,NHS Sheffield CCG,31/10/2017,C&M-GMS QOF Aspiration,PRC DELEGATED CO-COMMISSIONING,BUCHANAN ROAD SURGERY,19389345,"4,538.47"
Department of Health,NHS Sheffield CCG,31/10/2017,C&M-PMS Contract Value,PRC DELEGATED CO-COMMISSIONING,BURNCROSS SURGERY,19140812,"117,589.75"
Department of Health,NHS Sheffield CCG,31/10/2017,C&M-PMS Funding Differential Review,PRC DELEGATED CO-COMMISSIONING,BURNCROSS SURGERY,19140812,"1,648.42"
Department of Health,NHS Sheffield CCG,31/10/2017,C&M-PMS Prem Notional Rent,PRC DELEGATED CO-COMMISSIONING,BURNCROSS SURGERY,19140812,"14,058.33"
Department of Health,NHS Sheffield CCG,31/10/2017,C&M-PMS Prem Rates,PRC DELEGATED CO-COMMISSIONING,BURNCROSS SURGERY,19140812,"16,620.05"
Department of Health,NHS Sheffield CCG,31/10/2017,C&M-PMS QOF Aspiration,PRC DELEGATED CO-COMMISSIONING,BURNCROSS SURGERY,19140812,"14,930.79"
Department of Health,NHS Sheffield CCG,31/10/2017,C&M-PMS Contract Value,PRC DELEGATED CO-COMMISSIONING,BURNGREAVE SURGERY,19163796,"53,575.14"
Department of Health,NHS Sheffield CCG,31/10/2017,C&M-PMS Funding Differential Review,PRC DELEGATED CO-COMMISSIONING,BURNGREAVE SURGERY,19163796,"1,353.08"
Department of Health,NHS Sheffield CCG,31/10/2017,C&M-PMS Out of Hours Opt Outs,PRC DELEGATED CO-COMMISSIONING,BURNGREAVE SURGERY,19163796,6.13
Department of Health,NHS Sheffield CCG,31/10/2017,C&M-PMS Prem Actual Rent,PRC DELEGATED CO-COMMISSIONING,BURNGREAVE SURGERY,19163796,"11,069.95"
Department of Health,NHS Sheffield CCG,31/10/2017,C&M-PMS Prem Notional Rent,PRC DELEGATED CO-COMMISSIONING,BURNGREAVE SURGERY,19163796,"5,979.16"
Department of Health,NHS Sheffield CCG,31/10/2017,C&M-PMS Prem Rates,PRC DELEGATED CO-COMMISSIONING,BURNGREAVE SURGERY,19163796,"1,877.00"
Department of Health,NHS Sheffield CCG,31/10/2017,C&M-PMS Prem Water Rates,PRC DELEGATED CO-COMMISSIONING,BURNGREAVE SURGERY,19163796,301.7
Department of Health,NHS Sheffield CCG,31/10/2017,C&M-PMS QOF Aspiration,PRC DELEGATED CO-COMMISSIONING,BURNGREAVE SURGERY,19163796,"5,148.30"
Department of Health,NHS Sheffield CCG,31/10/2017,C&M-GMS Cost of Drugs -Prescribing,LOCAL ENHANCED SERVICES,CARTERKNOWLE & DORE MEDICAL PRACTICE,19407052,"2,475.79"
Department of Health,NHS Sheffield CCG,31/10/2017,C&M-GMS Global Sum,PRC DELEGATED CO-COMMISSIONING,CARTERKNOWLE & DORE MEDICAL PRACTICE,19407052,"79,841.76"
Department of Health,NHS Sheffield CCG,31/10/2017,C&M-GMS MPIG Correction Factor,PRC DELEGATED CO-COMMISSIONING,CARTERKNOWLE & DORE MEDICAL PRACTICE,19407052,"2,241.88"
Department of Health,NHS Sheffield CCG,31/10/2017,C&M-GMS Prem Notional Rent,PRC DELEGATED CO-COMMISSIONING,CARTERKNOWLE & DORE MEDICAL PRACTICE,19407052,"7,538.34"
Department of Health,NHS Sheffield CCG,31/10/2017,C&M-GMS Prof Fees Prescribing,PRC DELEGATED CO-COMMISSIONING,CARTERKNOWLE & DORE MEDICAL PRACTICE,19407052,210.57
Department of Health,NHS Sheffield CCG,31/10/2017,C&M-GMS QOF Aspiration,PRC DELEGATED CO-COMMISSIONING,CARTERKNOWLE & DORE MEDICAL PRACTICE,19407052,"10,317.62"
Department of Health,NHS Sheffield CCG,31/10/2017,C&M-GMS Cost of Drugs -Prescribing,LOCAL ENHANCED SERVICES,CHARNOCK HEALTH PRIMARY CARE CENTRE,19389350,714.41
Department of Health,NHS Sheffield CCG,31/10/2017,C&M-GMS DES Extended Hours Access,PRC DELEGATED CO-COMMISSIONING,CHARNOCK HEALTH PRIMARY CARE CENTRE,19389350,"2,472.37"
Department of Health,NHS Sheffield CCG,31/10/2017,C&M-GMS DES Learn Dsblty Hlth Chk,PRC DELEGATED CO-COMMISSIONING,CHARNOCK HEALTH PRIMARY CARE CENTRE,19389350,"1,624.00"
Department of Health,NHS Sheffield CCG,31/10/2017,C&M-GMS Global Sum,PRC DELEGATED CO-COMMISSIONING,CHARNOCK HEALTH PRIMARY CARE CENTRE,19389350,"39,043.56"
Department of Health,NHS Sheffield CCG,31/10/2017,C&M-GMS MPIG Correction Factor,PRC DELEGATED CO-COMMISSIONING,CHARNOCK HEALTH PRIMARY CARE CENTRE,19389350,619.87
Department of Health,NHS Sheffield CCG,31/10/2017,C&M-GMS PCO Other,PRC DELEGATED CO-COMMISSIONING,CHARNOCK HEALTH PRIMARY CARE CENTRE,19389350,452.6
Department of Health,NHS Sheffield CCG,31/10/2017,C&M-GMS Prem Actual Rent,PRC DELEGATED CO-COMMISSIONING,CHARNOCK HEALTH PRIMARY CARE CENTRE,19389350,"18,300.00"
Department of Health,NHS Sheffield CCG,31/10/2017,C&M-GMS Prem Notional Rent,PRC DELEGATED CO-COMMISSIONING,CHARNOCK HEALTH PRIMARY CARE CENTRE,19389350,305
Department of Health,NHS Sheffield CCG,31/10/2017,C&M-GMS Prem Rates,PRC DELEGATED CO-COMMISSIONING,CHARNOCK HEALTH PRIMARY CARE CENTRE,19389350,"1,111.00"
Department of Health,NHS Sheffield CCG,31/10/2017,C&M-GMS Prem Water Rates,PRC DELEGATED CO-COMMISSIONING,CHARNOCK HEALTH PRIMARY CARE CENTRE,19389350,160.44
Department of Health,NHS Sheffield CCG,31/10/2017,C&M-GMS Prof Fees Prescribing,PRC DELEGATED CO-COMMISSIONING,CHARNOCK HEALTH PRIMARY CARE CENTRE,19389350,43.96
Department of Health,NHS Sheffield CCG,31/10/2017,C&M-GMS QOF Aspiration,PRC DELEGATED CO-COMMISSIONING,CHARNOCK HEALTH PRIMARY CARE CENTRE,19389350,"4,669.55"
Department of Health,NHS Sheffield CCG,31/10/2017,Hcare Srv Rec Fdtn Trust-Contract Baseline,ACUTE COMMISSIONING,CHESTERFIELD ROYAL HOSPITAL NHS FOUNDATION TRUST,19113919,"273,318.00"
Department of Health,NHS Sheffield CCG,31/10/2017,Clinical&Medical-Independent Sector,ACUTE COMMISSIONING,CLAREMONT HOSPITAL,19113872,"78,290.00"
Department of Health,NHS Sheffield CCG,31/10/2017,Cont Care-Funded Nursing Care Allow,FUNDED NURSING CARE,COUNTRY COURT CARE LTD,19102201,"40,970.26"
Department of Health,NHS Sheffield CCG,31/10/2017,C&M-GMS Cost of Drugs -Prescribing,LOCAL ENHANCED SERVICES,CROOKES PRACTICE,19389356,602.33
Department of Health,NHS Sheffield CCG,31/10/2017,C&M-GMS Global Sum,PRC DELEGATED CO-COMMISSIONING,CROOKES PRACTICE,19389356,"47,207.91"
Department of Health,NHS Sheffield CCG,31/10/2017,C&M-GMS MPIG Correction Factor,PRC DELEGATED CO-COMMISSIONING,CROOKES PRACTICE,19389356,"2,318.88"
Department of Health,NHS Sheffield CCG,31/10/2017,C&M-GMS PCO Other,PRC DELEGATED CO-COMMISSIONING,CROOKES PRACTICE,19389356,452.6
Department of Health,NHS Sheffield CCG,31/10/2017,C&M-GMS Prem Notional Rent,PRC DELEGATED CO-COMMISSIONING,CROOKES PRACTICE,19389356,"3,752.42"
Department of Health,NHS Sheffield CCG,31/10/2017,C&M-GMS Prem Rates,PRC DELEGATED CO-COMMISSIONING,CROOKES PRACTICE,19389356,"1,444.00"
Department of Health,NHS Sheffield CCG,31/10/2017,C&M-GMS Prof Fees Prescribing,PRC DELEGATED CO-COMMISSIONING,CROOKES PRACTICE,19389356,87.93
Department of Health,NHS Sheffield CCG,31/10/2017,C&M-GMS QOF Aspiration,PRC DELEGATED CO-COMMISSIONING,CROOKES PRACTICE,19389356,"4,702.76"
Department of Health,NHS Sheffield CCG,31/10/2017,C&M-PMS Contract Value,PRC DELEGATED CO-COMMISSIONING,DEEPCAR MEDICAL CENTRE,19140816,"38,716.67"
Department of Health,NHS Sheffield CCG,31/10/2017,C&M-PMS Funding Differential Review,PRC DELEGATED CO-COMMISSIONING,DEEPCAR MEDICAL CENTRE,19140816,306.08
Department of Health,NHS Sheffield CCG,31/10/2017,C&M-PMS Prem Healthcentre Rent,PRC DELEGATED CO-COMMISSIONING,DEEPCAR MEDICAL CENTRE,19140816,"27,983.03"
Department of Health,NHS Sheffield CCG,31/10/2017,C&M-PMS QOF Aspiration,PRC DELEGATED CO-COMMISSIONING,DEEPCAR MEDICAL CENTRE,19140816,"4,452.12"
Department of Health,NHS Sheffield CCG,31/10/2017,Other professional fees,BEREAVEMENT SERVICE,DELOITTE MCS LTD,19376437,"108,000.00"
Department of Health,NHS Sheffield CCG,31/10/2017,C&M-GMS Cost of Drugs -Prescribing,LOCAL ENHANCED SERVICES,DEVONSHIRE GREEN MEDICAL CENTRE,19389361,671.54
Department of Health,NHS Sheffield CCG,31/10/2017,C&M-GMS Global Sum,PRC DELEGATED CO-COMMISSIONING,DEVONSHIRE GREEN MEDICAL CENTRE,19389361,"43,424.76"
Department of Health,NHS Sheffield CCG,31/10/2017,C&M-GMS MPIG Correction Factor,PRC DELEGATED CO-COMMISSIONING,DEVONSHIRE GREEN MEDICAL CENTRE,19389361,"4,846.80"
Department of Health,NHS Sheffield CCG,31/10/2017,C&M-GMS Prem Notional Rent,PRC DELEGATED CO-COMMISSIONING,DEVONSHIRE GREEN MEDICAL CENTRE,19389361,"5,987.50"
Department of Health,NHS Sheffield CCG,31/10/2017,C&M-GMS Prof Fees Prescribing,PRC DELEGATED CO-COMMISSIONING,DEVONSHIRE GREEN MEDICAL CENTRE,19389361,101.82
Department of Health,NHS Sheffield CCG,31/10/2017,C&M-GMS QOF Aspiration,PRC DELEGATED CO-COMMISSIONING,DEVONSHIRE GREEN MEDICAL CENTRE,19389361,"5,205.83"
Department of Health,NHS Sheffield CCG,31/10/2017,Hcare Srv Rec Fdtn Trust-Contract Baseline,ACUTE COMMISSIONING,DONCASTER AND BASSETLAW HOSPITALS NHS FOUNDATION TRUST,19113800,"34,715.00"
Department of Health,NHS Sheffield CCG,31/10/2017,C&M-PMS Contract Value,PRC DELEGATED CO-COMMISSIONING,DOVERCOURT SURGERY,19140818,"68,082.21"
Department of Health,NHS Sheffield CCG,31/10/2017,C&M-PMS Funding Differential Review,PRC DELEGATED CO-COMMISSIONING,DOVERCOURT SURGERY,19140818,"3,616.08"
Department of Health,NHS Sheffield CCG,31/10/2017,C&M-PMS Prem Actual Rent,PRC DELEGATED CO-COMMISSIONING,DOVERCOURT SURGERY,19140818,"12,400.00"
Department of Health,NHS Sheffield CCG,31/10/2017,C&M-PMS Prem Notional Rent,PRC DELEGATED CO-COMMISSIONING,DOVERCOURT SURGERY,19140818,"1,708.34"
Department of Health,NHS Sheffield CCG,31/10/2017,C&M-PMS Prem Water Rates,PRC DELEGATED CO-COMMISSIONING,DOVERCOURT SURGERY,19140818,325.36
Department of Health,NHS Sheffield CCG,31/10/2017,C&M-PMS QOF Aspiration,PRC DELEGATED CO-COMMISSIONING,DOVERCOURT SURGERY,19140818,"7,505.03"
Department of Health,NHS Sheffield CCG,31/10/2017,C&M-PMS Contract Value,PRC DELEGATED CO-COMMISSIONING,DR MEHROTRA & PARTNER,19140820,"27,162.37"
Department of Health,NHS Sheffield CCG,31/10/2017,C&M-PMS Funding Differential Review,PRC DELEGATED CO-COMMISSIONING,DR MEHROTRA & PARTNER,19140820,885.92
Department of Health,NHS Sheffield CCG,31/10/2017,C&M-PMS PCO Other,PRC DELEGATED CO-COMMISSIONING,DR MEHROTRA & PARTNER,19140820,384.5
Department of Health,NHS Sheffield CCG,31/10/2017,C&M-PMS Prem Notional Rent,PRC DELEGATED CO-COMMISSIONING,DR MEHROTRA & PARTNER,19140820,"5,157.33"
Department of Health,NHS Sheffield CCG,31/10/2017,C&M-PMS Prem Rates,PRC DELEGATED CO-COMMISSIONING,DR MEHROTRA & PARTNER,19140820,"1,322.00"
Department of Health,NHS Sheffield CCG,31/10/2017,C&M-PMS Prem Water Rates,PRC DELEGATED CO-COMMISSIONING,DR MEHROTRA & PARTNER,19140820,361.11
Department of Health,NHS Sheffield CCG,31/10/2017,C&M-PMS QOF Aspiration,PRC DELEGATED CO-COMMISSIONING,DR MEHROTRA & PARTNER,19140820,"3,389.93"
Department of Health,NHS Sheffield CCG,31/10/2017,C&M-PMS Contract Value,PRC DELEGATED CO-COMMISSIONING,DR MILNER & PARTNERS,19140822,"71,353.32"
Department of Health,NHS Sheffield CCG,31/10/2017,C&M-PMS Funding Differential Review,PRC DELEGATED CO-COMMISSIONING,DR MILNER & PARTNERS,19140822,"4,581.42"
Department of Health,NHS Sheffield CCG,31/10/2017,C&M-PMS PCO Locum Adop/Pat/Mat,PRC DELEGATED CO-COMMISSIONING,DR MILNER & PARTNERS,19140822,"5,386.77"
Department of Health,NHS Sheffield CCG,31/10/2017,C&M-PMS Prem Actual Rent,PRC DELEGATED CO-COMMISSIONING,DR MILNER & PARTNERS,19140822,"11,382.00"
Department of Health,NHS Sheffield CCG,31/10/2017,C&M-PMS Prem Notional Rent,PRC DELEGATED CO-COMMISSIONING,DR MILNER & PARTNERS,19140822,"4,462.41"
Department of Health,NHS Sheffield CCG,31/10/2017,C&M-PMS Prem Rates,PRC DELEGATED CO-COMMISSIONING,DR MILNER & PARTNERS,19140822,"1,921.00"
Department of Health,NHS Sheffield CCG,31/10/2017,C&M-PMS Prem Water Rates,PRC DELEGATED CO-COMMISSIONING,DR MILNER & PARTNERS,19140822,945.32
Department of Health,NHS Sheffield CCG,31/10/2017,C&M-PMS QOF Aspiration,PRC DELEGATED CO-COMMISSIONING,DR MILNER & PARTNERS,19140822,"7,385.62"
Department of Health,NHS Sheffield CCG,31/10/2017,C&M-GMS Cost of Drugs -Prescribing,LOCAL ENHANCED SERVICES,DUKE MEDICAL CENTRE,19389369,913.4
Department of Health,NHS Sheffield CCG,31/10/2017,C&M-GMS DES Learn Dsblty Hlth Chk,PRC DELEGATED CO-COMMISSIONING,DUKE MEDICAL CENTRE,19389369,980
Department of Health,NHS Sheffield CCG,31/10/2017,C&M-GMS Global Sum,PRC DELEGATED CO-COMMISSIONING,DUKE MEDICAL CENTRE,19389369,"54,296.42"
Department of Health,NHS Sheffield CCG,31/10/2017,C&M-GMS MPIG Correction Factor,PRC DELEGATED CO-COMMISSIONING,DUKE MEDICAL CENTRE,19389369,918.76
Department of Health,NHS Sheffield CCG,31/10/2017,C&M-GMS Prem Notional Rent,PRC DELEGATED CO-COMMISSIONING,DUKE MEDICAL CENTRE,19389369,"5,721.67"
Department of Health,NHS Sheffield CCG,31/10/2017,C&M-GMS Prem Water Rates,PRC DELEGATED CO-COMMISSIONING,DUKE MEDICAL CENTRE,19389369,472.59
Department of Health,NHS Sheffield CCG,31/10/2017,C&M-GMS Prof Fees Prescribing,PRC DELEGATED CO-COMMISSIONING,DUKE MEDICAL CENTRE,19389369,254.53
Department of Health,NHS Sheffield CCG,31/10/2017,C&M-GMS QOF Aspiration,PRC DELEGATED CO-COMMISSIONING,DUKE MEDICAL CENTRE,19389369,"5,346.37"
Department of Health,NHS Sheffield CCG,31/10/2017,C&M-PMS Contract Value,PRC DELEGATED CO-COMMISSIONING,DUNNINC ROAD SURGERY,19140824,"23,278.26"
Department of Health,NHS Sheffield CCG,31/10/2017,C&M-PMS Funding Differential Review,PRC DELEGATED CO-COMMISSIONING,DUNNINC ROAD SURGERY,19140824,"1,218.67"
Department of Health,NHS Sheffield CCG,31/10/2017,C&M-PMS Prem Actual Rent,PRC DELEGATED CO-COMMISSIONING,DUNNINC ROAD SURGERY,19140824,54.38
Department of Health,NHS Sheffield CCG,31/10/2017,C&M-PMS Prem Notional Rent,PRC DELEGATED CO-COMMISSIONING,DUNNINC ROAD SURGERY,19140824,"1,664.59"
Department of Health,NHS Sheffield CCG,31/10/2017,C&M-PMS QOF Aspiration,PRC DELEGATED CO-COMMISSIONING,DUNNINC ROAD SURGERY,19140824,"2,548.20"
Department of Health,NHS Sheffield CCG,31/10/2017,C&M-PMS Contract Value,PRC DELEGATED CO-COMMISSIONING,DYKES HALL MEDICAL CENTRE,19140826,"69,969.33"
Department of Health,NHS Sheffield CCG,31/10/2017,C&M-PMS Funding Differential Review,PRC DELEGATED CO-COMMISSIONING,DYKES HALL MEDICAL CENTRE,19140826,199.75
Department of Health,NHS Sheffield CCG,31/10/2017,C&M-PMS PCO Locum Adop/Pat/Mat,PRC DELEGATED CO-COMMISSIONING,DYKES HALL MEDICAL CENTRE,19140826,"4,896.17"
Department of Health,NHS Sheffield CCG,31/10/2017,C&M-PMS Prem Notional Rent,PRC DELEGATED CO-COMMISSIONING,DYKES HALL MEDICAL CENTRE,19140826,"5,300.83"
Department of Health,NHS Sheffield CCG,31/10/2017,C&M-PMS QOF Aspiration,PRC DELEGATED CO-COMMISSIONING,DYKES HALL MEDICAL CENTRE,19140826,"8,863.43"
Department of Health,NHS Sheffield CCG,31/10/2017,C&M-PMS Contract Value,PRC DELEGATED CO-COMMISSIONING,EAST BANK MEDICAL CENTRE,19140828,"44,692.31"
Department of Health,NHS Sheffield CCG,31/10/2017,C&M-PMS Funding Differential Review,PRC DELEGATED CO-COMMISSIONING,EAST BANK MEDICAL CENTRE,19140828,"1,588.17"
Department of Health,NHS Sheffield CCG,31/10/2017,C&M-PMS Out of Hours Opt Outs,PRC DELEGATED CO-COMMISSIONING,EAST BANK MEDICAL CENTRE,19140828,25.26
Department of Health,NHS Sheffield CCG,31/10/2017,C&M-PMS Prem Notional Rent,PRC DELEGATED CO-COMMISSIONING,EAST BANK MEDICAL CENTRE,19140828,"10,466.67"
Department of Health,NHS Sheffield CCG,31/10/2017,C&M-PMS Prem Rates,PRC DELEGATED CO-COMMISSIONING,EAST BANK MEDICAL CENTRE,19140828,"4,981.00"
Department of Health,NHS Sheffield CCG,31/10/2017,C&M-PMS QOF Aspiration,PRC DELEGATED CO-COMMISSIONING,EAST BANK MEDICAL CENTRE,19140828,"5,086.87"
Department of Health,NHS Sheffield CCG,31/10/2017,C&M-GMS Cost of Drugs -Prescribing,LOCAL ENHANCED SERVICES,ECCLESFIELD GROUP PRACTICE,19389365,"2,075.46"
Department of Health,NHS Sheffield CCG,31/10/2017,C&M-GMS Global Sum,PRC DELEGATED CO-COMMISSIONING,ECCLESFIELD GROUP PRACTICE,19389365,"63,522.58"
Department of Health,NHS Sheffield CCG,31/10/2017,C&M-GMS PCO Locum Adop/Pat/Mat,PRC DELEGATED CO-COMMISSIONING,ECCLESFIELD GROUP PRACTICE,19389365,"6,936.72"
Department of Health,NHS Sheffield CCG,31/10/2017,C&M-GMS PCO Other,PRC DELEGATED CO-COMMISSIONING,ECCLESFIELD GROUP PRACTICE,19389365,452.6
Department of Health,NHS Sheffield CCG,31/10/2017,C&M-GMS Prem Notional Rent,PRC DELEGATED CO-COMMISSIONING,ECCLESFIELD GROUP PRACTICE,19389365,"6,805.42"
Department of Health,NHS Sheffield CCG,31/10/2017,C&M-GMS Prem Rates,PRC DELEGATED CO-COMMISSIONING,ECCLESFIELD GROUP PRACTICE,19389365,"2,055.00"
Department of Health,NHS Sheffield CCG,31/10/2017,C&M-GMS Prof Fees Prescribing,PRC DELEGATED CO-COMMISSIONING,ECCLESFIELD GROUP PRACTICE,19389365,171.24
Department of Health,NHS Sheffield CCG,31/10/2017,C&M-GMS QOF Aspiration,PRC DELEGATED CO-COMMISSIONING,ECCLESFIELD GROUP PRACTICE,19389365,"10,399.72"
Department of Health,NHS Sheffield CCG,31/10/2017,C&M-GMS Cost of Drugs -Prescribing,LOCAL ENHANCED SERVICES,ELM LANE SURGERY,19389367,"1,923.95"
Department of Health,NHS Sheffield CCG,31/10/2017,C&M-GMS Global Sum,PRC DELEGATED CO-COMMISSIONING,ELM LANE SURGERY,19389367,"38,199.17"
Department of Health,NHS Sheffield CCG,31/10/2017,C&M-GMS MPIG Correction Factor,PRC DELEGATED CO-COMMISSIONING,ELM LANE SURGERY,19389367,"1,257.79"
Department of Health,NHS Sheffield CCG,31/10/2017,C&M-GMS Prem Notional Rent,PRC DELEGATED CO-COMMISSIONING,ELM LANE SURGERY,19389367,"5,168.50"
Department of Health,NHS Sheffield CCG,31/10/2017,C&M-GMS Prem Rates,PRC DELEGATED CO-COMMISSIONING,ELM LANE SURGERY,19389367,"1,268.00"
Department of Health,NHS Sheffield CCG,31/10/2017,C&M-GMS Prof Fees Prescribing,PRC DELEGATED CO-COMMISSIONING,ELM LANE SURGERY,19389367,173.55
Department of Health,NHS Sheffield CCG,31/10/2017,C&M-GMS QOF Aspiration,PRC DELEGATED CO-COMMISSIONING,ELM LANE SURGERY,19389367,"4,880.72"
Department of Health,NHS Sheffield CCG,31/10/2017,Cont Care-Physical Disab (<65),CHC ADULT FULLY FUNDED,FAIRWINDS HEALTH CARE LTD,19102244,"51,098.36"
Department of Health,NHS Sheffield CCG,31/10/2017,C&M-PMS Contract Value,PRC DELEGATED CO-COMMISSIONING,FALKLAND HOUSE,19140832,"26,517.98"
Department of Health,NHS Sheffield CCG,31/10/2017,C&M-PMS Funding Differential Review,PRC DELEGATED CO-COMMISSIONING,FALKLAND HOUSE,19140832,"1,255.92"
Department of Health,NHS Sheffield CCG,31/10/2017,C&M-PMS Out of Hours Opt Outs,PRC DELEGATED CO-COMMISSIONING,FALKLAND HOUSE,19140832,83.02
Department of Health,NHS Sheffield CCG,31/10/2017,C&M-PMS PCO Other,PRC DELEGATED CO-COMMISSIONING,FALKLAND HOUSE,19140832,384.5
Department of Health,NHS Sheffield CCG,31/10/2017,C&M-PMS Prem Notional Rent,PRC DELEGATED CO-COMMISSIONING,FALKLAND HOUSE,19140832,"1,802.08"
Department of Health,NHS Sheffield CCG,31/10/2017,C&M-PMS Prem Rates,PRC DELEGATED CO-COMMISSIONING,FALKLAND HOUSE,19140832,713
Department of Health,NHS Sheffield CCG,31/10/2017,C&M-PMS Prem Water Rates,PRC DELEGATED CO-COMMISSIONING,FALKLAND HOUSE,19140832,108.44
Department of Health,NHS Sheffield CCG,31/10/2017,C&M-PMS QOF Aspiration,PRC DELEGATED CO-COMMISSIONING,FALKLAND HOUSE,19140832,"3,036.47"
Department of Health,NHS Sheffield CCG,31/10/2017,C&M-GMS Cost of Drugs -Prescribing,LOCAL ENHANCED SERVICES,FAR LANE MEDICAL CENTRE,19389376,270.78
Department of Health,NHS Sheffield CCG,31/10/2017,C&M-GMS Global Sum,PRC DELEGATED CO-COMMISSIONING,FAR LANE MEDICAL CENTRE,19389376,"53,615.34"
Department of Health,NHS Sheffield CCG,31/10/2017,C&M-GMS PCO Other,PRC DELEGATED CO-COMMISSIONING,FAR LANE MEDICAL CENTRE,19389376,452.6
Department of Health,NHS Sheffield CCG,31/10/2017,C&M-GMS Prem Notional Rent,PRC DELEGATED CO-COMMISSIONING,FAR LANE MEDICAL CENTRE,19389376,"3,462.50"
Department of Health,NHS Sheffield CCG,31/10/2017,C&M-GMS Prem Rates,PRC DELEGATED CO-COMMISSIONING,FAR LANE MEDICAL CENTRE,19389376,"1,053.00"
Department of Health,NHS Sheffield CCG,31/10/2017,C&M-GMS Prem Water Rates,PRC DELEGATED CO-COMMISSIONING,FAR LANE MEDICAL CENTRE,19389376,84.58
Department of Health,NHS Sheffield CCG,31/10/2017,C&M-GMS Prof Fees Prescribing,PRC DELEGATED CO-COMMISSIONING,FAR LANE MEDICAL CENTRE,19389376,78.68
Department of Health,NHS Sheffield CCG,31/10/2017,C&M-GMS QOF Aspiration,PRC DELEGATED CO-COMMISSIONING,FAR LANE MEDICAL CENTRE,19389376,"6,224.50"
Department of Health,NHS Sheffield CCG,31/10/2017,C&M-PMS Contract Value,PRC DELEGATED CO-COMMISSIONING,FIRTH PARK SURGERY,19140830,"70,389.53"
Department of Health,NHS Sheffield CCG,31/10/2017,C&M-PMS Out of Hours Opt Outs,PRC DELEGATED CO-COMMISSIONING,FIRTH PARK SURGERY,19140830,1
Department of Health,NHS Sheffield CCG,31/10/2017,C&M-PMS Prem Notional Rent,PRC DELEGATED CO-COMMISSIONING,FIRTH PARK SURGERY,19140830,"4,500.00"
Department of Health,NHS Sheffield CCG,31/10/2017,C&M-PMS Prem Rates,PRC DELEGATED CO-COMMISSIONING,FIRTH PARK SURGERY,19140830,"1,291.00"
Department of Health,NHS Sheffield CCG,31/10/2017,C&M-PMS Prem Water Rates,PRC DELEGATED CO-COMMISSIONING,FIRTH PARK SURGERY,19140830,699.12
Department of Health,NHS Sheffield CCG,31/10/2017,C&M-PMS QOF Aspiration,PRC DELEGATED CO-COMMISSIONING,FIRTH PARK SURGERY,19140830,"8,194.20"
Department of Health,NHS Sheffield CCG,31/10/2017,C&M-GMS Cost of Drugs -Prescribing,LOCAL ENHANCED SERVICES,FLOWERS HEALTH CENTRE,19389448,"1,372.44"
Department of Health,NHS Sheffield CCG,31/10/2017,C&M-GMS Global Sum,PRC DELEGATED CO-COMMISSIONING,FLOWERS HEALTH CENTRE,19389448,"33,569.77"
Department of Health,NHS Sheffield CCG,31/10/2017,C&M-GMS MPIG Correction Factor,PRC DELEGATED CO-COMMISSIONING,FLOWERS HEALTH CENTRE,19389448,"2,214.46"
Department of Health,NHS Sheffield CCG,31/10/2017,C&M-GMS Prem Healthcentre Rent,PRC DELEGATED CO-COMMISSIONING,FLOWERS HEALTH CENTRE,19389448,"33,513.30"
Department of Health,NHS Sheffield CCG,31/10/2017,C&M-GMS Prof Fees Prescribing,PRC DELEGATED CO-COMMISSIONING,FLOWERS HEALTH CENTRE,19389448,115.7
Department of Health,NHS Sheffield CCG,31/10/2017,C&M-GMS QOF Aspiration,PRC DELEGATED CO-COMMISSIONING,FLOWERS HEALTH CENTRE,19389448,"4,334.56"
Department of Health,NHS Sheffield CCG,31/10/2017,C&M-PMS Contract Value,PRC DELEGATED CO-COMMISSIONING,FOXHILL MEDICAL CENTRE SHEFFIELD,19140880,"50,266.22"
Department of Health,NHS Sheffield CCG,31/10/2017,C&M-PMS Funding Differential Review,PRC DELEGATED CO-COMMISSIONING,FOXHILL MEDICAL CENTRE SHEFFIELD,19140880,"1,451.25"
Department of Health,NHS Sheffield CCG,31/10/2017,C&M-PMS Out of Hours Opt Outs,PRC DELEGATED CO-COMMISSIONING,FOXHILL MEDICAL CENTRE SHEFFIELD,19140880,12.3
Department of Health,NHS Sheffield CCG,31/10/2017,C&M-PMS PCO Other,PRC DELEGATED CO-COMMISSIONING,FOXHILL MEDICAL CENTRE SHEFFIELD,19140880,452.6
Department of Health,NHS Sheffield CCG,31/10/2017,C&M-PMS Prem Healthcentre Rent,PRC DELEGATED CO-COMMISSIONING,FOXHILL MEDICAL CENTRE SHEFFIELD,19140880,"46,118.26"
Department of Health,NHS Sheffield CCG,31/10/2017,C&M-PMS QOF Aspiration,PRC DELEGATED CO-COMMISSIONING,FOXHILL MEDICAL CENTRE SHEFFIELD,19140880,"5,736.75"
Department of Health,NHS Sheffield CCG,31/10/2017,C&M-PMS Contract Value,PRC DELEGATED CO-COMMISSIONING,GLEADLESS MEDICAL CENTRE,19140833,"67,346.75"
Department of Health,NHS Sheffield CCG,31/10/2017,C&M-PMS Funding Differential Review,PRC DELEGATED CO-COMMISSIONING,GLEADLESS MEDICAL CENTRE,19140833,"1,261.42"
Department of Health,NHS Sheffield CCG,31/10/2017,C&M-PMS Out of Hours Opt Outs,PRC DELEGATED CO-COMMISSIONING,GLEADLESS MEDICAL CENTRE,19140833,6.2
Department of Health,NHS Sheffield CCG,31/10/2017,C&M-PMS PCO Other,PRC DELEGATED CO-COMMISSIONING,GLEADLESS MEDICAL CENTRE,19140833,452.6
Department of Health,NHS Sheffield CCG,31/10/2017,C&M-PMS Prem Notional Rent,PRC DELEGATED CO-COMMISSIONING,GLEADLESS MEDICAL CENTRE,19140833,"6,750.00"
Department of Health,NHS Sheffield CCG,31/10/2017,C&M-PMS Prem Rates,PRC DELEGATED CO-COMMISSIONING,GLEADLESS MEDICAL CENTRE,19140833,"1,250.00"
Department of Health,NHS Sheffield CCG,31/10/2017,C&M-PMS Prem Water Rates,PRC DELEGATED CO-COMMISSIONING,GLEADLESS MEDICAL CENTRE,19140833,258.44
Department of Health,NHS Sheffield CCG,31/10/2017,C&M-PMS QOF Aspiration,PRC DELEGATED CO-COMMISSIONING,GLEADLESS MEDICAL CENTRE,19140833,"8,204.51"
Department of Health,NHS Sheffield CCG,31/10/2017,C&M-PMS Contract Value,PRC DELEGATED CO-COMMISSIONING,GLEADLESS MEDICAL CENTRE,19163797,-125.24
Department of Health,NHS Sheffield CCG,31/10/2017,C&M-PMS GP Statutory Levy,PRC DELEGATED CO-COMMISSIONING,GLEADLESS MEDICAL CENTRE,19163797,-266.01
Department of Health,NHS Sheffield CCG,31/10/2017,C&M-PMS Out of Hours Opt Outs,PRC DELEGATED CO-COMMISSIONING,GLEADLESS MEDICAL CENTRE,19163797,"-3,175.44"
Department of Health,NHS Sheffield CCG,31/10/2017,C&M-PMS Voluntary Levy,PRC DELEGATED CO-COMMISSIONING,GLEADLESS MEDICAL CENTRE,19163797,-44.34
Department of Health,NHS Sheffield CCG,31/10/2017,C&M-GMS Cost of Drugs -Prescribing,LOCAL ENHANCED SERVICES,GRENOSIDE SURGERY,19389382,"1,785.79"
Department of Health,NHS Sheffield CCG,31/10/2017,C&M-GMS Global Sum,PRC DELEGATED CO-COMMISSIONING,GRENOSIDE SURGERY,19389382,"54,311.14"
Department of Health,NHS Sheffield CCG,31/10/2017,C&M-GMS PCO Other,PRC DELEGATED CO-COMMISSIONING,GRENOSIDE SURGERY,19389382,452.6
Department of Health,NHS Sheffield CCG,31/10/2017,C&M-GMS Prem Notional Rent,PRC DELEGATED CO-COMMISSIONING,GRENOSIDE SURGERY,19389382,"8,150.17"
Department of Health,NHS Sheffield CCG,31/10/2017,C&M-GMS Prem Rates,PRC DELEGATED CO-COMMISSIONING,GRENOSIDE SURGERY,19389382,"1,643.00"
Department of Health,NHS Sheffield CCG,31/10/2017,C&M-GMS Prof Fees Prescribing,PRC DELEGATED CO-COMMISSIONING,GRENOSIDE SURGERY,19389382,90.25
Department of Health,NHS Sheffield CCG,31/10/2017,C&M-GMS QOF Aspiration,PRC DELEGATED CO-COMMISSIONING,GRENOSIDE SURGERY,19389382,"6,197.70"
Department of Health,NHS Sheffield CCG,31/10/2017,C&M-GMS Cost of Drugs -Prescribing,LOCAL ENHANCED SERVICES,GREYSTONES MEDICAL CENTRE,19389384,224.95
Department of Health,NHS Sheffield CCG,31/10/2017,C&M-GMS DES Learn Dsblty Hlth Chk,PRC DELEGATED CO-COMMISSIONING,GREYSTONES MEDICAL CENTRE,19389384,116
Department of Health,NHS Sheffield CCG,31/10/2017,C&M-GMS Global Sum,PRC DELEGATED CO-COMMISSIONING,GREYSTONES MEDICAL CENTRE,19389384,"18,752.82"
Department of Health,NHS Sheffield CCG,31/10/2017,C&M-GMS MPIG Correction Factor,PRC DELEGATED CO-COMMISSIONING,GREYSTONES MEDICAL CENTRE,19389384,"1,656.69"
Department of Health,NHS Sheffield CCG,31/10/2017,C&M-GMS PCO Other,PRC DELEGATED CO-COMMISSIONING,GREYSTONES MEDICAL CENTRE,19389384,384.5
Department of Health,NHS Sheffield CCG,31/10/2017,C&M-GMS Prem Notional Rent,PRC DELEGATED CO-COMMISSIONING,GREYSTONES MEDICAL CENTRE,19389384,"3,140.13"
Department of Health,NHS Sheffield CCG,31/10/2017,C&M-GMS Prem Rates,PRC DELEGATED CO-COMMISSIONING,GREYSTONES MEDICAL CENTRE,19389384,583
Department of Health,NHS Sheffield CCG,31/10/2017,C&M-GMS Prem Water Rates,PRC DELEGATED CO-COMMISSIONING,GREYSTONES MEDICAL CENTRE,19389384,82.16
Department of Health,NHS Sheffield CCG,31/10/2017,C&M-GMS Prof Fees Prescribing,PRC DELEGATED CO-COMMISSIONING,GREYSTONES MEDICAL CENTRE,19389384,67.11
Department of Health,NHS Sheffield CCG,31/10/2017,C&M-GMS QOF Aspiration,PRC DELEGATED CO-COMMISSIONING,GREYSTONES MEDICAL CENTRE,19389384,"2,071.10"
Department of Health,NHS Sheffield CCG,31/10/2017,C&M-PMS Contract Value,PRC DELEGATED CO-COMMISSIONING,HACKENTHORPE MEDICAL CENTRE,19140837,"45,737.66"
Department of Health,NHS Sheffield CCG,31/10/2017,C&M-PMS Funding Differential Review,PRC DELEGATED CO-COMMISSIONING,HACKENTHORPE MEDICAL CENTRE,19140837,"2,105.58"
Department of Health,NHS Sheffield CCG,31/10/2017,C&M-PMS Out of Hours Opt Outs,PRC DELEGATED CO-COMMISSIONING,HACKENTHORPE MEDICAL CENTRE,19140837,5.71
Department of Health,NHS Sheffield CCG,31/10/2017,C&M-PMS Prem Notional Rent,PRC DELEGATED CO-COMMISSIONING,HACKENTHORPE MEDICAL CENTRE,19140837,"4,981.25"
Department of Health,NHS Sheffield CCG,31/10/2017,C&M-PMS QOF Aspiration,PRC DELEGATED CO-COMMISSIONING,HACKENTHORPE MEDICAL CENTRE,19140837,"6,731.39"
Department of Health,NHS Sheffield CCG,31/10/2017,C&M-GMS Cost of Drugs -Prescribing,LOCAL ENHANCED SERVICES,HANDSWORTH MEDICAL PRACTICE SHEFFIELD,19389380,697.46
Department of Health,NHS Sheffield CCG,31/10/2017,C&M-GMS Global Sum,PRC DELEGATED CO-COMMISSIONING,HANDSWORTH MEDICAL PRACTICE SHEFFIELD,19389380,"72,067.76"
Department of Health,NHS Sheffield CCG,31/10/2017,C&M-GMS PCO Locum Adop/Pat/Mat,PRC DELEGATED CO-COMMISSIONING,HANDSWORTH MEDICAL PRACTICE SHEFFIELD,19389380,"2,884.23"
Department of Health,NHS Sheffield CCG,31/10/2017,C&M-GMS Prem Notional Rent,PRC DELEGATED CO-COMMISSIONING,HANDSWORTH MEDICAL PRACTICE SHEFFIELD,19389380,"3,321.66"
Department of Health,NHS Sheffield CCG,31/10/2017,C&M-GMS Prem Rates,PRC DELEGATED CO-COMMISSIONING,HANDSWORTH MEDICAL PRACTICE SHEFFIELD,19389380,"1,214.00"
Department of Health,NHS Sheffield CCG,31/10/2017,C&M-GMS Prof Fees Prescribing,PRC DELEGATED CO-COMMISSIONING,HANDSWORTH MEDICAL PRACTICE SHEFFIELD,19389380,178.18
Department of Health,NHS Sheffield CCG,31/10/2017,C&M-GMS QOF Aspiration,PRC DELEGATED CO-COMMISSIONING,HANDSWORTH MEDICAL PRACTICE SHEFFIELD,19389380,"8,011.43"
Department of Health,NHS Sheffield CCG,31/10/2017,Cont Care-Physical Disab (<65),CHC ADULT FULLY FUNDED,HC ONE LTD,19102165,"27,204.70"
Department of Health,NHS Sheffield CCG,31/10/2017,C&M-GMS Cost of Drugs -Prescribing,LOCAL ENHANCED SERVICES,HEALTH CARE SURGERY,19389390,778.91
Department of Health,NHS Sheffield CCG,31/10/2017,C&M-GMS Global Sum,PRC DELEGATED CO-COMMISSIONING,HEALTH CARE SURGERY,19389390,"36,324.22"
Department of Health,NHS Sheffield CCG,31/10/2017,C&M-GMS MPIG Correction Factor,PRC DELEGATED CO-COMMISSIONING,HEALTH CARE SURGERY,19389390,"1,170.03"
Department of Health,NHS Sheffield CCG,31/10/2017,C&M-GMS PCO Other,PRC DELEGATED CO-COMMISSIONING,HEALTH CARE SURGERY,19389390,384.5
Department of Health,NHS Sheffield CCG,31/10/2017,C&M-GMS Prem Notional Rent,PRC DELEGATED CO-COMMISSIONING,HEALTH CARE SURGERY,19389390,"3,862.50"
Department of Health,NHS Sheffield CCG,31/10/2017,C&M-GMS Prem Rates,PRC DELEGATED CO-COMMISSIONING,HEALTH CARE SURGERY,19389390,518
Department of Health,NHS Sheffield CCG,31/10/2017,C&M-GMS Prof Fees Prescribing,PRC DELEGATED CO-COMMISSIONING,HEALTH CARE SURGERY,19389390,113.38
Department of Health,NHS Sheffield CCG,31/10/2017,C&M-GMS QOF Aspiration,PRC DELEGATED CO-COMMISSIONING,HEALTH CARE SURGERY,19389390,"4,381.71"
Department of Health,NHS Sheffield CCG,31/10/2017,C&M-GMS Cost of Drugs -Prescribing,LOCAL ENHANCED SERVICES,HEELEY GREEN SURGERY,19389386,770.67
Department of Health,NHS Sheffield CCG,31/10/2017,C&M-GMS Global Sum,PRC DELEGATED CO-COMMISSIONING,HEELEY GREEN SURGERY,19389386,"39,703.11"
Department of Health,NHS Sheffield CCG,31/10/2017,C&M-GMS MPIG Correction Factor,PRC DELEGATED CO-COMMISSIONING,HEELEY GREEN SURGERY,19389386,564.3
Department of Health,NHS Sheffield CCG,31/10/2017,C&M-GMS Prem Notional Rent,PRC DELEGATED CO-COMMISSIONING,HEELEY GREEN SURGERY,19389386,"3,254.17"
Department of Health,NHS Sheffield CCG,31/10/2017,C&M-GMS Prem Rates,PRC DELEGATED CO-COMMISSIONING,HEELEY GREEN SURGERY,19389386,245
Department of Health,NHS Sheffield CCG,31/10/2017,C&M-GMS Prof Fees Prescribing,PRC DELEGATED CO-COMMISSIONING,HEELEY GREEN SURGERY,19389386,166.61
Department of Health,NHS Sheffield CCG,31/10/2017,C&M-GMS QOF Aspiration,PRC DELEGATED CO-COMMISSIONING,HEELEY GREEN SURGERY,19389386,"4,920.38"
Department of Health,NHS Sheffield CCG,31/10/2017,C&M-GMS Cost of Drugs -Prescribing,LOCAL ENHANCED SERVICES,HOLLIES MEDICAL CENTRE,19389388,"1,177.64"
Department of Health,NHS Sheffield CCG,31/10/2017,C&M-GMS Global Sum,PRC DELEGATED CO-COMMISSIONING,HOLLIES MEDICAL CENTRE,19389388,"53,041.38"
Department of Health,NHS Sheffield CCG,31/10/2017,C&M-GMS MPIG Correction Factor,PRC DELEGATED CO-COMMISSIONING,HOLLIES MEDICAL CENTRE,19389388,"2,179.09"
Department of Health,NHS Sheffield CCG,31/10/2017,C&M-GMS PCO Other,PRC DELEGATED CO-COMMISSIONING,HOLLIES MEDICAL CENTRE,19389388,452.6
Department of Health,NHS Sheffield CCG,31/10/2017,C&M-GMS Prem Notional Rent,PRC DELEGATED CO-COMMISSIONING,HOLLIES MEDICAL CENTRE,19389388,"3,229.17"
Department of Health,NHS Sheffield CCG,31/10/2017,C&M-GMS Prem Rates,PRC DELEGATED CO-COMMISSIONING,HOLLIES MEDICAL CENTRE,19389388,"1,188.00"
Department of Health,NHS Sheffield CCG,31/10/2017,C&M-GMS Prof Fees Prescribing,PRC DELEGATED CO-COMMISSIONING,HOLLIES MEDICAL CENTRE,19389388,136.53
Department of Health,NHS Sheffield CCG,31/10/2017,C&M-GMS QOF Aspiration,PRC DELEGATED CO-COMMISSIONING,HOLLIES MEDICAL CENTRE,19389388,"6,561.21"
Department of Health,NHS Sheffield CCG,31/10/2017,Cont Care-Physical Disab (<65),CHC ADULT FULLY FUNDED,HORIZON CARE HOMES LTD,19102149,"79,035.39"
Department of Health,NHS Sheffield CCG,31/10/2017,Cont Care-Physical Disab (<65),CHC ADULT FULLY FUNDED,HORIZON CARE HOMES LTD,19102367,"63,418.70"
Department of Health,NHS Sheffield CCG,31/10/2017,C&M-PMS Contract Value,PRC DELEGATED CO-COMMISSIONING,JAUNTY SPRINGS HEALTH CENTRE,19140839,"28,777.86"
Department of Health,NHS Sheffield CCG,31/10/2017,C&M-PMS Funding Differential Review,PRC DELEGATED CO-COMMISSIONING,JAUNTY SPRINGS HEALTH CENTRE,19140839,448
Department of Health,NHS Sheffield CCG,31/10/2017,C&M-PMS Out of Hours Opt Outs,PRC DELEGATED CO-COMMISSIONING,JAUNTY SPRINGS HEALTH CENTRE,19140839,1.3
Department of Health,NHS Sheffield CCG,31/10/2017,C&M-PMS PCO Other,PRC DELEGATED CO-COMMISSIONING,JAUNTY SPRINGS HEALTH CENTRE,19140839,384.5
Department of Health,NHS Sheffield CCG,31/10/2017,C&M-PMS Prem Notional Rent,PRC DELEGATED CO-COMMISSIONING,JAUNTY SPRINGS HEALTH CENTRE,19140839,"3,208.33"
Department of Health,NHS Sheffield CCG,31/10/2017,C&M-PMS Prem Rates,PRC DELEGATED CO-COMMISSIONING,JAUNTY SPRINGS HEALTH CENTRE,19140839,570
Department of Health,NHS Sheffield CCG,31/10/2017,C&M-PMS Prem Water Rates,PRC DELEGATED CO-COMMISSIONING,JAUNTY SPRINGS HEALTH CENTRE,19140839,50.59
Department of Health,NHS Sheffield CCG,31/10/2017,C&M-PMS QOF Aspiration,PRC DELEGATED CO-COMMISSIONING,JAUNTY SPRINGS HEALTH CENTRE,19140839,"4,393.31"
Department of Health,NHS Sheffield CCG,31/10/2017,C&M-GMS IT Comm Servs -GP Practices,PRIMARY CARE IT,KIER BUSINESS SERVICES LTD,19102129,"105,622.80"
Department of Health,NHS Sheffield CCG,31/10/2017,FM Computer Contracts,BUSINESS INFORMATICS,KIER BUSINESS SERVICES LTD,19102129,"37,381.20"
Department of Health,NHS Sheffield CCG,31/10/2017,C&M-GMS LES Translation Fees,INTERPRETING SERVICES,LANGUAGELINE SOLUTIONS,19146149,"36,754.21"
Department of Health,NHS Sheffield CCG,31/10/2017,C&M-GMS LES Translation Fees,INTERPRETING SERVICES,LANGUAGELINE SOLUTIONS,19146157,"29,618.40"
Department of Health,NHS Sheffield CCG,31/10/2017,Hcare Srv Rec NHS Trust-Contract Baseline,ACUTE COMMISSIONING,LEEDS TEACHING HOSPITALS NHS TRUST,19073059,"-57,766.75"
Department of Health,NHS Sheffield CCG,31/10/2017,Hcare Srv Rec NHS Trust-Contract Baseline,ACUTE COMMISSIONING,LEEDS TEACHING HOSPITALS NHS TRUST,19146095,"53,622.82"
Department of Health,NHS Sheffield CCG,31/10/2017,Hcare Srv Rec NHS Trust-Contract Baseline,ACUTE COMMISSIONING,LEEDS TEACHING HOSPITALS NHS TRUST,19146103,"53,622.82"
Department of Health,NHS Sheffield CCG,31/10/2017,Cont Care-Physical Disab (<65),CHC ADULT FULLY FUNDED,LONGLEY HEALTH CARE LTD,19102350,"45,984.40"
Department of Health,NHS Sheffield CCG,31/10/2017,Cont Care-Physical Disab (<65),CHC ADULT FULLY FUNDED,LOXLEY HEALTH CARE LTD,19102352,"54,052.43"
Department of Health,NHS Sheffield CCG,31/10/2017,C&M-PMS Contract Value,PRC DELEGATED CO-COMMISSIONING,MANCHESTER ROAD SURGERY SHEFFIELD,19140843,"30,001.22"
Department of Health,NHS Sheffield CCG,31/10/2017,C&M-PMS Funding Differential Review,PRC DELEGATED CO-COMMISSIONING,MANCHESTER ROAD SURGERY SHEFFIELD,19140843,446.67
Department of Health,NHS Sheffield CCG,31/10/2017,C&M-PMS Prem Cost Rent,PRC DELEGATED CO-COMMISSIONING,MANCHESTER ROAD SURGERY SHEFFIELD,19140843,"3,472.17"
Department of Health,NHS Sheffield CCG,31/10/2017,C&M-PMS Prem Notional Rent,PRC DELEGATED CO-COMMISSIONING,MANCHESTER ROAD SURGERY SHEFFIELD,19140843,442.92
Department of Health,NHS Sheffield CCG,31/10/2017,C&M-PMS Prem Rates,PRC DELEGATED CO-COMMISSIONING,MANCHESTER ROAD SURGERY SHEFFIELD,19140843,920
Department of Health,NHS Sheffield CCG,31/10/2017,C&M-PMS QOF Aspiration,PRC DELEGATED CO-COMMISSIONING,MANCHESTER ROAD SURGERY SHEFFIELD,19140843,"4,335.60"
Department of Health,NHS Sheffield CCG,31/10/2017,C&M-GMS Cost of Drugs -Prescribing,LOCAL ENHANCED SERVICES,MANOR PARK MEDICAL CENTRE SHEFFIELD,19389401,473.26
Department of Health,NHS Sheffield CCG,31/10/2017,C&M-GMS Global Sum,PRC DELEGATED CO-COMMISSIONING,MANOR PARK MEDICAL CENTRE SHEFFIELD,19389401,"33,476.88"
Department of Health,NHS Sheffield CCG,31/10/2017,C&M-GMS MPIG Correction Factor,PRC DELEGATED CO-COMMISSIONING,MANOR PARK MEDICAL CENTRE SHEFFIELD,19389401,559.19
Department of Health,NHS Sheffield CCG,31/10/2017,C&M-GMS PCO Locum Adop/Pat/Mat,PRC DELEGATED CO-COMMISSIONING,MANOR PARK MEDICAL CENTRE SHEFFIELD,19389401,"2,480.00"
Department of Health,NHS Sheffield CCG,31/10/2017,C&M-GMS Prem Notional Rent,PRC DELEGATED CO-COMMISSIONING,MANOR PARK MEDICAL CENTRE SHEFFIELD,19389401,"3,050.00"
Department of Health,NHS Sheffield CCG,31/10/2017,C&M-GMS Prem Rates,PRC DELEGATED CO-COMMISSIONING,MANOR PARK MEDICAL CENTRE SHEFFIELD,19389401,428
Department of Health,NHS Sheffield CCG,31/10/2017,C&M-GMS Prof Fees Prescribing,PRC DELEGATED CO-COMMISSIONING,MANOR PARK MEDICAL CENTRE SHEFFIELD,19389401,92.56
Department of Health,NHS Sheffield CCG,31/10/2017,C&M-GMS QOF Aspiration,PRC DELEGATED CO-COMMISSIONING,MANOR PARK MEDICAL CENTRE SHEFFIELD,19389401,"4,479.66"
Department of Health,NHS Sheffield CCG,31/10/2017,C&M-GMS Cost of Drugs -Prescribing,LOCAL ENHANCED SERVICES,MATHEWS PRACTICE,19389398,391.67
Department of Health,NHS Sheffield CCG,31/10/2017,C&M-GMS Global Sum,PRC DELEGATED CO-COMMISSIONING,MATHEWS PRACTICE,19389398,"64,881.97"
Department of Health,NHS Sheffield CCG,31/10/2017,C&M-GMS MPIG Correction Factor,PRC DELEGATED CO-COMMISSIONING,MATHEWS PRACTICE,19389398,898.44
Department of Health,NHS Sheffield CCG,31/10/2017,C&M-GMS Prem Notional Rent,PRC DELEGATED CO-COMMISSIONING,MATHEWS PRACTICE,19389398,"8,660.42"
Department of Health,NHS Sheffield CCG,31/10/2017,C&M-GMS Prem Rates,PRC DELEGATED CO-COMMISSIONING,MATHEWS PRACTICE,19389398,"1,757.00"
Department of Health,NHS Sheffield CCG,31/10/2017,C&M-GMS Prof Fees Prescribing,PRC DELEGATED CO-COMMISSIONING,MATHEWS PRACTICE,19389398,171.24
Department of Health,NHS Sheffield CCG,31/10/2017,C&M-GMS QOF Aspiration,PRC DELEGATED CO-COMMISSIONING,MATHEWS PRACTICE,19389398,"9,686.98"
Department of Health,NHS Sheffield CCG,31/10/2017,C&M-PMS Contract Value,PRC DELEGATED CO-COMMISSIONING,MEADOWHEAD GROUP PRACTICE,19140841,"75,473.75"
Department of Health,NHS Sheffield CCG,31/10/2017,C&M-PMS Out of Hours Opt Outs,PRC DELEGATED CO-COMMISSIONING,MEADOWHEAD GROUP PRACTICE,19140841,15.35
Department of Health,NHS Sheffield CCG,31/10/2017,C&M-PMS PCO Locum Adop/Pat/Mat,PRC DELEGATED CO-COMMISSIONING,MEADOWHEAD GROUP PRACTICE,19140841,"12,679.21"
Department of Health,NHS Sheffield CCG,31/10/2017,C&M-PMS Prem Cost Rent,PRC DELEGATED CO-COMMISSIONING,MEADOWHEAD GROUP PRACTICE,19140841,"3,647.42"
Department of Health,NHS Sheffield CCG,31/10/2017,C&M-PMS Prem Healthcentre Rent,PRC DELEGATED CO-COMMISSIONING,MEADOWHEAD GROUP PRACTICE,19140841,"3,143.67"
Department of Health,NHS Sheffield CCG,31/10/2017,C&M-PMS Prem Notional Rent,PRC DELEGATED CO-COMMISSIONING,MEADOWHEAD GROUP PRACTICE,19140841,"3,358.33"
Department of Health,NHS Sheffield CCG,31/10/2017,C&M-PMS Prem Rates,PRC DELEGATED CO-COMMISSIONING,MEADOWHEAD GROUP PRACTICE,19140841,"1,709.00"
Department of Health,NHS Sheffield CCG,31/10/2017,C&M-PMS QOF Aspiration,PRC DELEGATED CO-COMMISSIONING,MEADOWHEAD GROUP PRACTICE,19140841,"10,533.01"
Department of Health,NHS Sheffield CCG,31/10/2017,C&M-GMS Cost of Drugs -Prescribing,LOCAL ENHANCED SERVICES,MEDICAL CENTRE CRYSTAL PEAKS,19389394,657.82
Department of Health,NHS Sheffield CCG,31/10/2017,C&M-GMS Global Sum,PRC DELEGATED CO-COMMISSIONING,MEDICAL CENTRE CRYSTAL PEAKS,19389394,"43,638.17"
Department of Health,NHS Sheffield CCG,31/10/2017,C&M-GMS MPIG Correction Factor,PRC DELEGATED CO-COMMISSIONING,MEDICAL CENTRE CRYSTAL PEAKS,19389394,"1,697.01"
Department of Health,NHS Sheffield CCG,31/10/2017,C&M-GMS PCO Other,PRC DELEGATED CO-COMMISSIONING,MEDICAL CENTRE CRYSTAL PEAKS,19389394,452.6
Department of Health,NHS Sheffield CCG,31/10/2017,C&M-GMS Prem Actual Rent,PRC DELEGATED CO-COMMISSIONING,MEDICAL CENTRE CRYSTAL PEAKS,19389394,"17,610.00"
Department of Health,NHS Sheffield CCG,31/10/2017,C&M-GMS Prem Notional Rent,PRC DELEGATED CO-COMMISSIONING,MEDICAL CENTRE CRYSTAL PEAKS,19389394,270
Department of Health,NHS Sheffield CCG,31/10/2017,C&M-GMS Prem Rates,PRC DELEGATED CO-COMMISSIONING,MEDICAL CENTRE CRYSTAL PEAKS,19389394,"1,822.00"
Department of Health,NHS Sheffield CCG,31/10/2017,C&M-GMS Prem Water Rates,PRC DELEGATED CO-COMMISSIONING,MEDICAL CENTRE CRYSTAL PEAKS,19389394,270.23
Department of Health,NHS Sheffield CCG,31/10/2017,C&M-GMS Prof Fees Prescribing,PRC DELEGATED CO-COMMISSIONING,MEDICAL CENTRE CRYSTAL PEAKS,19389394,347.1
Department of Health,NHS Sheffield CCG,31/10/2017,C&M-GMS QOF Aspiration,PRC DELEGATED CO-COMMISSIONING,MEDICAL CENTRE CRYSTAL PEAKS,19389394,"6,023.36"
Department of Health,NHS Sheffield CCG,31/10/2017,C&M-GMS Cost of Drugs -Prescribing,LOCAL ENHANCED SERVICES,MILL ROAD SURGERY SHEFFIELD,19389403,"1,822.27"
Department of Health,NHS Sheffield CCG,31/10/2017,C&M-GMS Global Sum,PRC DELEGATED CO-COMMISSIONING,MILL ROAD SURGERY SHEFFIELD,19389403,"38,250.35"
Department of Health,NHS Sheffield CCG,31/10/2017,C&M-GMS MPIG Correction Factor,PRC DELEGATED CO-COMMISSIONING,MILL ROAD SURGERY SHEFFIELD,19389403,183.06
Department of Health,NHS Sheffield CCG,31/10/2017,C&M-GMS PCO Other,PRC DELEGATED CO-COMMISSIONING,MILL ROAD SURGERY SHEFFIELD,19389403,452.6
Department of Health,NHS Sheffield CCG,31/10/2017,C&M-GMS Prem Notional Rent,PRC DELEGATED CO-COMMISSIONING,MILL ROAD SURGERY SHEFFIELD,19389403,"4,587.50"
Department of Health,NHS Sheffield CCG,31/10/2017,C&M-GMS Prem Rates,PRC DELEGATED CO-COMMISSIONING,MILL ROAD SURGERY SHEFFIELD,19389403,833
Department of Health,NHS Sheffield CCG,31/10/2017,C&M-GMS Prof Fees Prescribing,PRC DELEGATED CO-COMMISSIONING,MILL ROAD SURGERY SHEFFIELD,19389403,189.75
Department of Health,NHS Sheffield CCG,31/10/2017,C&M-GMS QOF Aspiration,PRC DELEGATED CO-COMMISSIONING,MILL ROAD SURGERY SHEFFIELD,19389403,"5,445.09"
Department of Health,NHS Sheffield CCG,31/10/2017,Cont Care-Learning Disab(<65),CHC ADULT FULLY FUNDED,MOORVILLE RESIDENTIAL,19190527,"19,358.92"
Department of Health,NHS Sheffield CCG,31/10/2017,Cont Care-Learning Disab(<65),CHC ADULT JOINT FUNDED,MOORVILLE RESIDENTIAL,19190527,"2,340.00"
Department of Health,NHS Sheffield CCG,31/10/2017,Cont Care-Mental Health (<65),CHC ADULT FULLY FUNDED,MOORVILLE RESIDENTIAL,19190527,"3,147.94"
Department of Health,NHS Sheffield CCG,31/10/2017,Cont Care-Mental Health (<65),CHC ADULT JOINT FUNDED,MOORVILLE RESIDENTIAL,19190527,475.71
Department of Health,NHS Sheffield CCG,31/10/2017,C&M-PMS Contract Value,PRC DELEGATED CO-COMMISSIONING,MOSBOROUGH HEALTH CENTRE,19140845,"45,903.40"
Department of Health,NHS Sheffield CCG,31/10/2017,C&M-PMS Funding Differential Review,PRC DELEGATED CO-COMMISSIONING,MOSBOROUGH HEALTH CENTRE,19140845,"1,253.00"
Department of Health,NHS Sheffield CCG,31/10/2017,C&M-PMS Out of Hours Opt Outs,PRC DELEGATED CO-COMMISSIONING,MOSBOROUGH HEALTH CENTRE,19140845,8.97
Department of Health,NHS Sheffield CCG,31/10/2017,C&M-PMS PCO Other,PRC DELEGATED CO-COMMISSIONING,MOSBOROUGH HEALTH CENTRE,19140845,452.6
Department of Health,NHS Sheffield CCG,31/10/2017,C&M-PMS Prem Notional Rent,PRC DELEGATED CO-COMMISSIONING,MOSBOROUGH HEALTH CENTRE,19140845,"4,091.67"
Department of Health,NHS Sheffield CCG,31/10/2017,C&M-PMS Prem Water Rates,PRC DELEGATED CO-COMMISSIONING,MOSBOROUGH HEALTH CENTRE,19140845,198.14
Department of Health,NHS Sheffield CCG,31/10/2017,C&M-PMS QOF Aspiration,PRC DELEGATED CO-COMMISSIONING,MOSBOROUGH HEALTH CENTRE,19140845,"6,017.44"
Department of Health,NHS Sheffield CCG,31/10/2017,C&M-PMS Contract Value,PRC DELEGATED CO-COMMISSIONING,NETHERGREEN SURGERY,19163798,"60,134.67"
Department of Health,NHS Sheffield CCG,31/10/2017,C&M-PMS DES Extended Hours Access,PRC DELEGATED CO-COMMISSIONING,NETHERGREEN SURGERY,19163798,"4,435.08"
Department of Health,NHS Sheffield CCG,31/10/2017,C&M-PMS Funding Differential Review,PRC DELEGATED CO-COMMISSIONING,NETHERGREEN SURGERY,19163798,"1,876.58"
Department of Health,NHS Sheffield CCG,31/10/2017,C&M-PMS Prem Cost Rent,PRC DELEGATED CO-COMMISSIONING,NETHERGREEN SURGERY,19163798,"5,057.33"
Department of Health,NHS Sheffield CCG,31/10/2017,C&M-PMS Prem Rates,PRC DELEGATED CO-COMMISSIONING,NETHERGREEN SURGERY,19163798,"1,200.00"
Department of Health,NHS Sheffield CCG,31/10/2017,C&M-PMS QOF Aspiration,PRC DELEGATED CO-COMMISSIONING,NETHERGREEN SURGERY,19163798,"6,339.79"
Department of Health,NHS Sheffield CCG,31/10/2017,Cont Care-Physical Disab (<65),CHC ADULT FULLY FUNDED,NEVILLE HEALTH CARE LTD,19102353,"34,201.73"
Department of Health,NHS Sheffield CCG,31/10/2017,C&M-GMS Prem Other,PRC DELEGATED CO-COMMISSIONING,NHS ENGLAND,19275635,"9,572.29"
Department of Health,NHS Sheffield CCG,31/10/2017,Contract- Refuse & Clinical Waste,PRC DELEGATED CO-COMMISSIONING,NHS ENGLAND,19275635,"65,241.86"
Department of Health,NHS Sheffield CCG,31/10/2017,Other Gen Supplies & Srv,PRC DELEGATED CO-COMMISSIONING,NHS ENGLAND,19275635,"10,491.00"
Department of Health,NHS Sheffield CCG,31/10/2017,Charges from CSU,BUSINESS INFORMATICS,NHS NORTH OF ENGLAND CSU,19204694,"30,083.00"
Department of Health,NHS Sheffield CCG,31/10/2017,Charges from CSU,BUSINESS INFORMATICS,NHS NORTH OF ENGLAND CSU,19204704,"-30,083.00"
Department of Health,NHS Sheffield CCG,31/10/2017,Charges from CSU,BUSINESS INFORMATICS,NHS NORTH OF ENGLAND CSU,19261911,"30,083.00"
Department of Health,NHS Sheffield CCG,31/10/2017,Charges from CSU,BUSINESS INFORMATICS,NHS NORTH OF ENGLAND CSU,19354410,"30,083.00"
Department of Health,NHS Sheffield CCG,31/10/2017,Voids and Subsidies,RECHARGES NHS PROPERTY SERVICES LTD,NHS PROPERTY SERVICES LTD,19354370,"34,305.86"
Department of Health,NHS Sheffield CCG,31/10/2017,Voids and Subsidies,RECHARGES NHS PROPERTY SERVICES LTD,NHS PROPERTY SERVICES LTD,19354575,"34,631.85"
Department of Health,NHS Sheffield CCG,31/10/2017,Voids and Subsidies,RECHARGES NHS PROPERTY SERVICES LTD,NHS PROPERTY SERVICES LTD,19376321,"44,086.26"
Department of Health,NHS Sheffield CCG,31/10/2017,Voids and Subsidies,RECHARGES NHS PROPERTY SERVICES LTD,NHS PROPERTY SERVICES LTD,19376340,"68,611.72"
Department of Health,NHS Sheffield CCG,31/10/2017,C&M-GMS Cost of Drugs -Prescribing,LOCAL ENHANCED SERVICES,NORFOLK PARK HEALTH CENTRE,19389408,196.8
Department of Health,NHS Sheffield CCG,31/10/2017,C&M-GMS Global Sum,PRC DELEGATED CO-COMMISSIONING,NORFOLK PARK HEALTH CENTRE,19389408,"34,086.64"
Department of Health,NHS Sheffield CCG,31/10/2017,C&M-GMS MPIG Correction Factor,PRC DELEGATED CO-COMMISSIONING,NORFOLK PARK HEALTH CENTRE,19389408,"1,386.91"
Department of Health,NHS Sheffield CCG,31/10/2017,C&M-GMS Prem Healthcentre Rent,PRC DELEGATED CO-COMMISSIONING,NORFOLK PARK HEALTH CENTRE,19389408,"23,010.32"
Department of Health,NHS Sheffield CCG,31/10/2017,C&M-GMS Prof Fees Prescribing,PRC DELEGATED CO-COMMISSIONING,NORFOLK PARK HEALTH CENTRE,19389408,78.68
Department of Health,NHS Sheffield CCG,31/10/2017,C&M-GMS QOF Aspiration,PRC DELEGATED CO-COMMISSIONING,NORFOLK PARK HEALTH CENTRE,19389408,"4,068.39"
Department of Health,NHS Sheffield CCG,31/10/2017,Clinical&Medical-Commercial Sector,PATIENT TRANSPORT,NORTHERN TAXIS LTD,19073189,"101,292.00"
Department of Health,NHS Sheffield CCG,31/10/2017,Clinical&Medical-Commercial Sector,PATIENT TRANSPORT,NORTHERN TAXIS LTD,19169104,"26,806.20"
Department of Health,NHS Sheffield CCG,31/10/2017,Clinical&Medical-Commercial Sector,PATIENT TRANSPORT,NORTHERN TAXIS LTD,19376717,"65,767.60"
Department of Health,NHS Sheffield CCG,31/10/2017,Hcare Srv Rec NHS Trust-Non Contract,NCAS/OATS,NORTHUMBERLAND TYNE AND WEAR NHS FOUNDATION TRUST,19190519,"72,330.00"
Department of Health,NHS Sheffield CCG,31/10/2017,C&M-GMS Cost of Drugs -Prescribing,LOCAL ENHANCED SERVICES,NORWOOD MEDICAL CENTRE SHEFFIELD,19389411,150.54
Department of Health,NHS Sheffield CCG,31/10/2017,C&M-GMS Global Sum,PRC DELEGATED CO-COMMISSIONING,NORWOOD MEDICAL CENTRE SHEFFIELD,19389411,"61,011.90"
Department of Health,NHS Sheffield CCG,31/10/2017,C&M-GMS PCO Other,PRC DELEGATED CO-COMMISSIONING,NORWOOD MEDICAL CENTRE SHEFFIELD,19389411,452.6
Department of Health,NHS Sheffield CCG,31/10/2017,C&M-GMS Prem Notional Rent,PRC DELEGATED CO-COMMISSIONING,NORWOOD MEDICAL CENTRE SHEFFIELD,19389411,"5,187.50"
Department of Health,NHS Sheffield CCG,31/10/2017,C&M-GMS Prem Water Rates,PRC DELEGATED CO-COMMISSIONING,NORWOOD MEDICAL CENTRE SHEFFIELD,19389411,227.72
Department of Health,NHS Sheffield CCG,31/10/2017,C&M-GMS Prof Fees Prescribing,PRC DELEGATED CO-COMMISSIONING,NORWOOD MEDICAL CENTRE SHEFFIELD,19389411,97.17
Department of Health,NHS Sheffield CCG,31/10/2017,C&M-GMS QOF Aspiration,PRC DELEGATED CO-COMMISSIONING,NORWOOD MEDICAL CENTRE SHEFFIELD,19389411,"8,411.55"
Department of Health,NHS Sheffield CCG,31/10/2017,Clinical&Medical-Independent Sector,ACUTE COMMISSIONING,ONEHEALTH GROUP,19086827,"-36,122.11"
Department of Health,NHS Sheffield CCG,31/10/2017,Clinical&Medical-Independent Sector,ACUTE COMMISSIONING,ONEHEALTH GROUP,19146199,"90,000.00"
Department of Health,NHS Sheffield CCG,31/10/2017,C&M-GMS Cost of Drugs -Dispensing,LOCAL ENHANCED SERVICES,OUGHTIBRIDGE SURGERY,19389414,"-17,149.09"
Department of Health,NHS Sheffield CCG,31/10/2017,C&M-GMS GP Statutory Levy,PRC DELEGATED CO-COMMISSIONING,OUGHTIBRIDGE SURGERY,19389414,-175.17
Department of Health,NHS Sheffield CCG,31/10/2017,C&M-GMS PrscChrgsCll&RmttdbyGPCntra,PRC DELEGATED CO-COMMISSIONING,OUGHTIBRIDGE SURGERY,19389414,-713.8
Department of Health,NHS Sheffield CCG,31/10/2017,C&M-GMS QOF Aspiration,PRC DELEGATED CO-COMMISSIONING,OUGHTIBRIDGE SURGERY,19389414,-392.91
Department of Health,NHS Sheffield CCG,31/10/2017,C&M-GMS Voluntary Levy,PRC DELEGATED CO-COMMISSIONING,OUGHTIBRIDGE SURGERY,19389414,-29.2
Department of Health,NHS Sheffield CCG,31/10/2017,C&M-GMS Cost of Drugs -Dispensing,LOCAL ENHANCED SERVICES,OUGHTIBRIDGE SURGERY,19389415,"30,375.37"
Department of Health,NHS Sheffield CCG,31/10/2017,C&M-GMS Global Sum,PRC DELEGATED CO-COMMISSIONING,OUGHTIBRIDGE SURGERY,19389415,"41,333.34"
Department of Health,NHS Sheffield CCG,31/10/2017,C&M-GMS Prem Notional Rent,PRC DELEGATED CO-COMMISSIONING,OUGHTIBRIDGE SURGERY,19389415,"3,957.33"
Department of Health,NHS Sheffield CCG,31/10/2017,C&M-GMS Prem Water Rates,PRC DELEGATED CO-COMMISSIONING,OUGHTIBRIDGE SURGERY,19389415,153.25
Department of Health,NHS Sheffield CCG,31/10/2017,C&M-GMS Prof Fees Dispensing,PRC DELEGATED CO-COMMISSIONING,OUGHTIBRIDGE SURGERY,19389415,"4,802.00"
Department of Health,NHS Sheffield CCG,31/10/2017,C&M-GMS PrscrptnChrgsColl&RmttdbyGP,LOCAL ENHANCED SERVICES,OUGHTIBRIDGE SURGERY,19389415,713.8
Department of Health,NHS Sheffield CCG,31/10/2017,C&M-GMS QOF Aspiration,PRC DELEGATED CO-COMMISSIONING,OUGHTIBRIDGE SURGERY,19389415,"4,693.88"
Department of Health,NHS Sheffield CCG,31/10/2017,C&M-PMS Contract Value,PRC DELEGATED CO-COMMISSIONING,OWLTHORPE MEDICAL CENTRE,19163799,"36,000.73"
Department of Health,NHS Sheffield CCG,31/10/2017,C&M-PMS Funding Differential Review,PRC DELEGATED CO-COMMISSIONING,OWLTHORPE MEDICAL CENTRE,19163799,"1,499.67"
Department of Health,NHS Sheffield CCG,31/10/2017,C&M-PMS Out of Hours Opt Outs,PRC DELEGATED CO-COMMISSIONING,OWLTHORPE MEDICAL CENTRE,19163799,101.2
Department of Health,NHS Sheffield CCG,31/10/2017,C&M-PMS PCO Other,PRC DELEGATED CO-COMMISSIONING,OWLTHORPE MEDICAL CENTRE,19163799,384.5
Department of Health,NHS Sheffield CCG,31/10/2017,C&M-PMS Prem Actual Rent,PRC DELEGATED CO-COMMISSIONING,OWLTHORPE MEDICAL CENTRE,19163799,"7,539.58"
Department of Health,NHS Sheffield CCG,31/10/2017,C&M-PMS QOF Aspiration,PRC DELEGATED CO-COMMISSIONING,OWLTHORPE MEDICAL CENTRE,19163799,"4,031.40"
Department of Health,NHS Sheffield CCG,31/10/2017,C&M-PMS Contract Value,PRC DELEGATED CO-COMMISSIONING,PAGE HALL MEDICAL CENTRE,19140848,-159.6
Department of Health,NHS Sheffield CCG,31/10/2017,C&M-PMS GP Statutory Levy,PRC DELEGATED CO-COMMISSIONING,PAGE HALL MEDICAL CENTRE,19140848,-223.71
Department of Health,NHS Sheffield CCG,31/10/2017,C&M-PMS Out of Hours Opt Outs,PRC DELEGATED CO-COMMISSIONING,PAGE HALL MEDICAL CENTRE,19140848,"-2,515.02"
Department of Health,NHS Sheffield CCG,31/10/2017,C&M-PMS Prem Actual Rent,PRC DELEGATED CO-COMMISSIONING,PAGE HALL MEDICAL CENTRE,19140848,-135
Department of Health,NHS Sheffield CCG,31/10/2017,C&M-PMS Voluntary Levy,PRC DELEGATED CO-COMMISSIONING,PAGE HALL MEDICAL CENTRE,19140848,-37.29
Department of Health,NHS Sheffield CCG,31/10/2017,C&M-PMS Contract Value,PRC DELEGATED CO-COMMISSIONING,PAGE HALL MEDICAL CENTRE,19140849,"53,335.89"
Department of Health,NHS Sheffield CCG,31/10/2017,C&M-PMS Funding Differential Review,PRC DELEGATED CO-COMMISSIONING,PAGE HALL MEDICAL CENTRE,19140849,"5,391.08"
Department of Health,NHS Sheffield CCG,31/10/2017,C&M-PMS Out of Hours Opt Outs,PRC DELEGATED CO-COMMISSIONING,PAGE HALL MEDICAL CENTRE,19140849,7.91
Department of Health,NHS Sheffield CCG,31/10/2017,C&M-PMS Prem Actual Rent,PRC DELEGATED CO-COMMISSIONING,PAGE HALL MEDICAL CENTRE,19140849,135
Department of Health,NHS Sheffield CCG,31/10/2017,C&M-PMS Prem Notional Rent,PRC DELEGATED CO-COMMISSIONING,PAGE HALL MEDICAL CENTRE,19140849,"4,833.33"
Department of Health,NHS Sheffield CCG,31/10/2017,C&M-PMS Prem Rates,PRC DELEGATED CO-COMMISSIONING,PAGE HALL MEDICAL CENTRE,19140849,875
Department of Health,NHS Sheffield CCG,31/10/2017,C&M-PMS QOF Aspiration,PRC DELEGATED CO-COMMISSIONING,PAGE HALL MEDICAL CENTRE,19140849,"5,102.24"
Department of Health,NHS Sheffield CCG,31/10/2017,C&M-PMS Contract Value,PRC DELEGATED CO-COMMISSIONING,PARK HEALTH CENTRE,19140851,"40,085.43"
Department of Health,NHS Sheffield CCG,31/10/2017,C&M-PMS DES Extended Hours Access,PRC DELEGATED CO-COMMISSIONING,PARK HEALTH CENTRE,19140851,"2,487.10"
Department of Health,NHS Sheffield CCG,31/10/2017,C&M-PMS Funding Differential Review,PRC DELEGATED CO-COMMISSIONING,PARK HEALTH CENTRE,19140851,"3,290.17"
Department of Health,NHS Sheffield CCG,31/10/2017,C&M-PMS Out of Hours Opt Outs,PRC DELEGATED CO-COMMISSIONING,PARK HEALTH CENTRE,19140851,66.74
Department of Health,NHS Sheffield CCG,31/10/2017,C&M-PMS PCO Locum Adop/Pat/Mat,PRC DELEGATED CO-COMMISSIONING,PARK HEALTH CENTRE,19140851,304.18
Department of Health,NHS Sheffield CCG,31/10/2017,C&M-PMS PCO Other,PRC DELEGATED CO-COMMISSIONING,PARK HEALTH CENTRE,19140851,452.6
Department of Health,NHS Sheffield CCG,31/10/2017,C&M-PMS Prem Notional Rent,PRC DELEGATED CO-COMMISSIONING,PARK HEALTH CENTRE,19140851,"6,000.00"
Department of Health,NHS Sheffield CCG,31/10/2017,C&M-PMS QOF Aspiration,PRC DELEGATED CO-COMMISSIONING,PARK HEALTH CENTRE,19140851,"4,293.17"
Department of Health,NHS Sheffield CCG,31/10/2017,C&M-PMS Contract Value,PRC DELEGATED CO-COMMISSIONING,PITSMOOR SURGERY,19140853,"76,031.60"
Department of Health,NHS Sheffield CCG,31/10/2017,C&M-PMS Out of Hours Opt Outs,PRC DELEGATED CO-COMMISSIONING,PITSMOOR SURGERY,19140853,63.22
Department of Health,NHS Sheffield CCG,31/10/2017,C&M-PMS Prem Notional Rent,PRC DELEGATED CO-COMMISSIONING,PITSMOOR SURGERY,19140853,"9,650.00"
Department of Health,NHS Sheffield CCG,31/10/2017,C&M-PMS QOF Aspiration,PRC DELEGATED CO-COMMISSIONING,PITSMOOR SURGERY,19140853,"7,463.31"
Department of Health,NHS Sheffield CCG,31/10/2017,C&M-GMS LES Equitable Funding,LOCAL ENHANCED SERVICES,PORTER BROOK MEDICAL CENTRE,19091770,"26,665.00"
Department of Health,NHS Sheffield CCG,31/10/2017,C&M-PMS Contract Value,PRC DELEGATED CO-COMMISSIONING,PORTER BROOK MEDICAL CENTRE,19140854,"-7,057.03"
Department of Health,NHS Sheffield CCG,31/10/2017,C&M-PMS GP Statutory Levy,PRC DELEGATED CO-COMMISSIONING,PORTER BROOK MEDICAL CENTRE,19140854,-831.48
Department of Health,NHS Sheffield CCG,31/10/2017,C&M-PMS Out of Hours Opt Outs,PRC DELEGATED CO-COMMISSIONING,PORTER BROOK MEDICAL CENTRE,19140854,"-7,538.64"
Department of Health,NHS Sheffield CCG,31/10/2017,C&M-PMS Voluntary Levy,PRC DELEGATED CO-COMMISSIONING,PORTER BROOK MEDICAL CENTRE,19140854,-138.58
Department of Health,NHS Sheffield CCG,31/10/2017,C&M-PMS Contract Value,PRC DELEGATED CO-COMMISSIONING,PORTER BROOK MEDICAL CENTRE,19140855,"159,923.39"
Department of Health,NHS Sheffield CCG,31/10/2017,C&M-PMS Funding Differential Review,PRC DELEGATED CO-COMMISSIONING,PORTER BROOK MEDICAL CENTRE,19140855,"5,112.08"
Department of Health,NHS Sheffield CCG,31/10/2017,C&M-PMS Out of Hours Opt Outs,PRC DELEGATED CO-COMMISSIONING,PORTER BROOK MEDICAL CENTRE,19140855,352.08
Department of Health,NHS Sheffield CCG,31/10/2017,C&M-PMS PCO Other,PRC DELEGATED CO-COMMISSIONING,PORTER BROOK MEDICAL CENTRE,19140855,591.8
Department of Health,NHS Sheffield CCG,31/10/2017,C&M-PMS Prem Actual Rent,PRC DELEGATED CO-COMMISSIONING,PORTER BROOK MEDICAL CENTRE,19140855,"1,333.33"
Department of Health,NHS Sheffield CCG,31/10/2017,C&M-PMS Prem Notional Rent,PRC DELEGATED CO-COMMISSIONING,PORTER BROOK MEDICAL CENTRE,19140855,"9,559.58"
Department of Health,NHS Sheffield CCG,31/10/2017,C&M-PMS Prem Rates,PRC DELEGATED CO-COMMISSIONING,PORTER BROOK MEDICAL CENTRE,19140855,"1,956.00"
Department of Health,NHS Sheffield CCG,31/10/2017,C&M-PMS QOF Aspiration,PRC DELEGATED CO-COMMISSIONING,PORTER BROOK MEDICAL CENTRE,19140855,"8,899.04"
Department of Health,NHS Sheffield CCG,31/10/2017,Clinical&Medical-Commercial Sector,PATIENT TRANSPORT,PREMIER CARE DIRECT LTD,19376500,"91,807.22"
Department of Health,NHS Sheffield CCG,31/10/2017,C&M-GMS LES Basket of Procedures,LOCAL ENHANCED SERVICES,PRIMARY CARE SHEFFIELD LTD,19073150,"27,265.00"
Department of Health,NHS Sheffield CCG,31/10/2017,C&M-APMS DES Extended Hours Access,LOCAL ENHANCED SERVICES,PRIMARY CARE SHEFFIELD LTD,19113967,"289,935.16"
Department of Health,NHS Sheffield CCG,31/10/2017,C&M-OES Childrens Schemes,LOCAL ENHANCED SERVICES,PRIMARY EYECARE (SHEFFIELD) LTD,19146180,925
Department of Health,NHS Sheffield CCG,31/10/2017,C&M-OES Glaucoma,LOCAL ENHANCED SERVICES,PRIMARY EYECARE (SHEFFIELD) LTD,19146180,910
Department of Health,NHS Sheffield CCG,31/10/2017,C&M-OES Intra-ocular Ocular Hypertn,LOCAL ENHANCED SERVICES,PRIMARY EYECARE (SHEFFIELD) LTD,19146180,700
Department of Health,NHS Sheffield CCG,31/10/2017,C&M-OES PEARS,LOCAL ENHANCED SERVICES,PRIMARY EYECARE (SHEFFIELD) LTD,19146180,"25,911.50"
Department of Health,NHS Sheffield CCG,31/10/2017,Cont Care-Physical Disab (<65),CHC ADULT FULLY FUNDED,PRIORY GROUP LTD,19102358,"25,784.11"
Department of Health,NHS Sheffield CCG,31/10/2017,C&M-PMS Contract Value,PRC DELEGATED CO-COMMISSIONING,RICHMOND MEDICAL CENTRE,19140857,"61,524.76"
Department of Health,NHS Sheffield CCG,31/10/2017,C&M-PMS Funding Differential Review,PRC DELEGATED CO-COMMISSIONING,RICHMOND MEDICAL CENTRE,19140857,"1,802.33"
Department of Health,NHS Sheffield CCG,31/10/2017,C&M-PMS PCO Other,PRC DELEGATED CO-COMMISSIONING,RICHMOND MEDICAL CENTRE,19140857,452.6
Department of Health,NHS Sheffield CCG,31/10/2017,C&M-PMS Prem Notional Rent,PRC DELEGATED CO-COMMISSIONING,RICHMOND MEDICAL CENTRE,19140857,"4,700.00"
Department of Health,NHS Sheffield CCG,31/10/2017,C&M-PMS Prem Rates,PRC DELEGATED CO-COMMISSIONING,RICHMOND MEDICAL CENTRE,19140857,"1,139.00"
Department of Health,NHS Sheffield CCG,31/10/2017,C&M-PMS QOF Aspiration,PRC DELEGATED CO-COMMISSIONING,RICHMOND MEDICAL CENTRE,19140857,"7,754.77"
Department of Health,NHS Sheffield CCG,31/10/2017,Cont Care-Physical Disab (<65),CHC ADULT FULLY FUNDED,ROSEBERRY CARE CENTRES,19102170,"40,529.48"
Department of Health,NHS Sheffield CCG,31/10/2017,Cont Care-Funded Nursing Care Allow,FUNDED NURSING CARE,ROSEBERRY CARE CENTRES,19102282,"27,867.79"
Department of Health,NHS Sheffield CCG,31/10/2017,Cont Care-Funded Nursing Care Allow,FUNDED NURSING CARE,ROSEBERRY CARE CENTRES,19102283,"33,032.30"
Department of Health,NHS Sheffield CCG,31/10/2017,Cont Care-Physical Disab (<65),CHC ADULT FULLY FUNDED,ROSEBERRY CARE CENTRES,19102370,"33,821.48"
Department of Health,NHS Sheffield CCG,31/10/2017,Hcare Srv Rec Fdtn Trust-Contract Baseline,ACUTE COMMISSIONING,ROTHERHAM NHS FOUNDATION TRUST,19073136,"429,401.00"
Department of Health,NHS Sheffield CCG,31/10/2017,C&M-PMS Contract Value,PRC DELEGATED CO-COMMISSIONING,RUSTLINGS ROAD MEDICAL CENTRE,19140861,"26,711.75"
Department of Health,NHS Sheffield CCG,31/10/2017,C&M-PMS Funding Differential Review,PRC DELEGATED CO-COMMISSIONING,RUSTLINGS ROAD MEDICAL CENTRE,19140861,"1,235.92"
Department of Health,NHS Sheffield CCG,31/10/2017,C&M-PMS Out of Hours Opt Outs,PRC DELEGATED CO-COMMISSIONING,RUSTLINGS ROAD MEDICAL CENTRE,19140861,14.54
Department of Health,NHS Sheffield CCG,31/10/2017,C&M-PMS PCO Other,PRC DELEGATED CO-COMMISSIONING,RUSTLINGS ROAD MEDICAL CENTRE,19140861,384.5
Department of Health,NHS Sheffield CCG,31/10/2017,C&M-PMS Prem Notional Rent,PRC DELEGATED CO-COMMISSIONING,RUSTLINGS ROAD MEDICAL CENTRE,19140861,"1,167.92"
Department of Health,NHS Sheffield CCG,31/10/2017,C&M-PMS QOF Aspiration,PRC DELEGATED CO-COMMISSIONING,RUSTLINGS ROAD MEDICAL CENTRE,19140861,"2,481.56"
Department of Health,NHS Sheffield CCG,31/10/2017,Cont Care-Physical Disab (<65),CHC ADULT FULLY FUNDED,SEVEN HILLS NURSING HOME,19102360,"35,683.22"
Department of Health,NHS Sheffield CCG,31/10/2017,C&M-GMS Cost of Drugs -Prescribing,LOCAL ENHANCED SERVICES,SHARROW LANE MEDICAL CENTRE,19389420,322.82
Department of Health,NHS Sheffield CCG,31/10/2017,C&M-GMS Global Sum,PRC DELEGATED CO-COMMISSIONING,SHARROW LANE MEDICAL CENTRE,19389420,"21,889.98"
Department of Health,NHS Sheffield CCG,31/10/2017,C&M-GMS MPIG Correction Factor,PRC DELEGATED CO-COMMISSIONING,SHARROW LANE MEDICAL CENTRE,19389420,"2,940.48"
Department of Health,NHS Sheffield CCG,31/10/2017,C&M-GMS PCO Other,PRC DELEGATED CO-COMMISSIONING,SHARROW LANE MEDICAL CENTRE,19389420,384.5
Department of Health,NHS Sheffield CCG,31/10/2017,C&M-GMS Prem Notional Rent,PRC DELEGATED CO-COMMISSIONING,SHARROW LANE MEDICAL CENTRE,19389420,"2,658.33"
Department of Health,NHS Sheffield CCG,31/10/2017,C&M-GMS Prem Rates,PRC DELEGATED CO-COMMISSIONING,SHARROW LANE MEDICAL CENTRE,19389420,467
Department of Health,NHS Sheffield CCG,31/10/2017,C&M-GMS Prof Fees Prescribing,PRC DELEGATED CO-COMMISSIONING,SHARROW LANE MEDICAL CENTRE,19389420,62.48
Department of Health,NHS Sheffield CCG,31/10/2017,C&M-GMS QOF Aspiration,PRC DELEGATED CO-COMMISSIONING,SHARROW LANE MEDICAL CENTRE,19389420,"2,727.76"
Department of Health,NHS Sheffield CCG,31/10/2017,Hcare Srv Rec Fdtn Trust-CQUIN,ACUTE CHILDRENS SERVICES,SHEFFIELD CHILDRENS NHS FOUNDATION TRUST,19059801,"21,842.00"
Department of Health,NHS Sheffield CCG,31/10/2017,Hcare Srv Rec Fdtn Trust-CQUIN,COMMUNITY SERVICES,SHEFFIELD CHILDRENS NHS FOUNDATION TRUST,19059801,"3,728.00"
Department of Health,NHS Sheffield CCG,31/10/2017,Hcare Srv Rec Fdtn Trust-Contract Baseline,ACUTE CHILDRENS SERVICES,SHEFFIELD CHILDRENS NHS FOUNDATION TRUST,19059801,"24,221.68"
Department of Health,NHS Sheffield CCG,31/10/2017,Hcare Srv Rec Fdtn Trust-Contract Baseline,HIGH COST DRUGS,SHEFFIELD CHILDRENS NHS FOUNDATION TRUST,19059801,"9,605.00"
Department of Health,NHS Sheffield CCG,31/10/2017,Hcare Srv Rec Fdtn Trust-Contract Baseline,MENTAL HEALTH CONTRACTS,SHEFFIELD CHILDRENS NHS FOUNDATION TRUST,19059801,"-3,916.00"
Department of Health,NHS Sheffield CCG,31/10/2017,Hcare Srv Rec Fdtn Trust-Contract Baseline,PLANNED CARE,SHEFFIELD CHILDRENS NHS FOUNDATION TRUST,19059801,"-143,925.00"
Department of Health,NHS Sheffield CCG,31/10/2017,Hcare Srv Rec Fdtn Trust-Contract Baseline,URGENT CARE,SHEFFIELD CHILDRENS NHS FOUNDATION TRUST,19059801,"-319,061.00"
Department of Health,NHS Sheffield CCG,31/10/2017,Hcare Srv Rec Fdtn Trust-CQUIN,ACUTE CHILDRENS SERVICES,SHEFFIELD CHILDRENS NHS FOUNDATION TRUST,19098740,"32,706.00"
Department of Health,NHS Sheffield CCG,31/10/2017,Hcare Srv Rec Fdtn Trust-CQUIN,COMMUNITY SERVICES,SHEFFIELD CHILDRENS NHS FOUNDATION TRUST,19098740,"3,728.00"
Department of Health,NHS Sheffield CCG,31/10/2017,Hcare Srv Rec Fdtn Trust-Contract Baseline,ACUTE CHILDRENS SERVICES,SHEFFIELD CHILDRENS NHS FOUNDATION TRUST,19098740,"235,977.00"
Department of Health,NHS Sheffield CCG,31/10/2017,Hcare Srv Rec Fdtn Trust-Contract Baseline,CHILD AND ADOLESCENT MENTAL HEALTH,SHEFFIELD CHILDRENS NHS FOUNDATION TRUST,19098740,"367,086.00"
Department of Health,NHS Sheffield CCG,31/10/2017,Hcare Srv Rec Fdtn Trust-Contract Baseline,COMMUNITY SERVICES,SHEFFIELD CHILDRENS NHS FOUNDATION TRUST,19098740,"298,241.00"
Department of Health,NHS Sheffield CCG,31/10/2017,Hcare Srv Rec Fdtn Trust-Contract Baseline,HIGH COST DRUGS,SHEFFIELD CHILDRENS NHS FOUNDATION TRUST,19098740,"40,649.00"
Department of Health,NHS Sheffield CCG,31/10/2017,Hcare Srv Rec Fdtn Trust-Contract Baseline,MENTAL HEALTH CONTRACTS,SHEFFIELD CHILDRENS NHS FOUNDATION TRUST,19098740,"5,277.00"
Department of Health,NHS Sheffield CCG,31/10/2017,Hcare Srv Rec Fdtn Trust-Contract Baseline,PLANNED CARE,SHEFFIELD CHILDRENS NHS FOUNDATION TRUST,19098740,"965,735.00"
Department of Health,NHS Sheffield CCG,31/10/2017,Hcare Srv Rec Fdtn Trust-Contract Baseline,SAFEGUARDING,SHEFFIELD CHILDRENS NHS FOUNDATION TRUST,19098740,"29,800.00"
Department of Health,NHS Sheffield CCG,31/10/2017,Hcare Srv Rec Fdtn Trust-Contract Baseline,URGENT CARE,SHEFFIELD CHILDRENS NHS FOUNDATION TRUST,19098740,"988,358.00"
Department of Health,NHS Sheffield CCG,31/10/2017,Hcare Srv Rec Fdtn Trust-CQUIN,ACUTE CHILDRENS SERVICES,SHEFFIELD CHILDRENS NHS FOUNDATION TRUST,19414453,112
Department of Health,NHS Sheffield CCG,31/10/2017,Hcare Srv Rec Fdtn Trust-Contract Baseline,ACUTE CHILDRENS SERVICES,SHEFFIELD CHILDRENS NHS FOUNDATION TRUST,19414453,-22
Department of Health,NHS Sheffield CCG,31/10/2017,Hcare Srv Rec Fdtn Trust-Contract Baseline,HIGH COST DRUGS,SHEFFIELD CHILDRENS NHS FOUNDATION TRUST,19414453,"23,798.00"
Department of Health,NHS Sheffield CCG,31/10/2017,Hcare Srv Rec Fdtn Trust-Contract Baseline,MENTAL HEALTH CONTRACTS,SHEFFIELD CHILDRENS NHS FOUNDATION TRUST,19414453,-274
Department of Health,NHS Sheffield CCG,31/10/2017,Hcare Srv Rec Fdtn Trust-Contract Baseline,PLANNED CARE,SHEFFIELD CHILDRENS NHS FOUNDATION TRUST,19414453,"4,575.00"
Department of Health,NHS Sheffield CCG,31/10/2017,Hcare Srv Rec Fdtn Trust-Contract Baseline,URGENT CARE,SHEFFIELD CHILDRENS NHS FOUNDATION TRUST,19414453,188
Department of Health,NHS Sheffield CCG,31/10/2017,Hcare Srv Rec Fdtn Trust-CQUIN,ACUTE CHILDRENS SERVICES,SHEFFIELD CHILDRENS NHS FOUNDATION TRUST,19453400,"30,704.00"
Department of Health,NHS Sheffield CCG,31/10/2017,Hcare Srv Rec Fdtn Trust-CQUIN,COMMUNITY SERVICES,SHEFFIELD CHILDRENS NHS FOUNDATION TRUST,19453400,"3,728.00"
Department of Health,NHS Sheffield CCG,31/10/2017,Hcare Srv Rec Fdtn Trust-Contract Baseline,ACUTE CHILDRENS SERVICES,SHEFFIELD CHILDRENS NHS FOUNDATION TRUST,19453400,"21,687.87"
Department of Health,NHS Sheffield CCG,31/10/2017,Hcare Srv Rec Fdtn Trust-Contract Baseline,HIGH COST DRUGS,SHEFFIELD CHILDRENS NHS FOUNDATION TRUST,19453400,"16,209.00"
Department of Health,NHS Sheffield CCG,31/10/2017,Hcare Srv Rec Fdtn Trust-Contract Baseline,MENTAL HEALTH CONTRACTS,SHEFFIELD CHILDRENS NHS FOUNDATION TRUST,19453400,"14,323.00"
Department of Health,NHS Sheffield CCG,31/10/2017,Hcare Srv Rec Fdtn Trust-Contract Baseline,PLANNED CARE,SHEFFIELD CHILDRENS NHS FOUNDATION TRUST,19453400,"-62,132.00"
Department of Health,NHS Sheffield CCG,31/10/2017,Hcare Srv Rec Fdtn Trust-Contract Baseline,URGENT CARE,SHEFFIELD CHILDRENS NHS FOUNDATION TRUST,19453400,"-62,067.00"
Department of Health,NHS Sheffield CCG,31/10/2017,Cont Care-Physical Disab (65+),CHC ADULT FULLY FUNDED,SHEFFIELD CITY COUNCIL,19190612,"763,940.36"
Department of Health,NHS Sheffield CCG,31/10/2017,Hcare Srv Rec Fdtn Trust-Contract Baseline,MENTAL HEALTH CONTRACTS,SHEFFIELD HEALTH & SOCIAL CARE NHS FOUNDATION TRUST,19073106,"43,493.80"
Department of Health,NHS Sheffield CCG,31/10/2017,C&M-APMS LES Translation Fees,LOCAL ENHANCED SERVICES,SHEFFIELD HEALTH & SOCIAL CARE NHS FOUNDATION TRUST,19106677,"57,500.00"
Department of Health,NHS Sheffield CCG,31/10/2017,C&M-APMS Contract Value,PRC DELEGATED CO-COMMISSIONING,SHEFFIELD HEALTH & SOCIAL CARE NHS FOUNDATION TRUST,19140565,"119,551.04"
Department of Health,NHS Sheffield CCG,31/10/2017,C&M-APMS OOH Opt Outs,PRC DELEGATED CO-COMMISSIONING,SHEFFIELD HEALTH & SOCIAL CARE NHS FOUNDATION TRUST,19140565,27.65
Department of Health,NHS Sheffield CCG,31/10/2017,C&M-APMS Prem Actual Rent,PRC DELEGATED CO-COMMISSIONING,SHEFFIELD HEALTH & SOCIAL CARE NHS FOUNDATION TRUST,19140565,"5,169.68"
Department of Health,NHS Sheffield CCG,31/10/2017,C&M-APMS Prem Healthcentre Rent,PRC DELEGATED CO-COMMISSIONING,SHEFFIELD HEALTH & SOCIAL CARE NHS FOUNDATION TRUST,19140565,"60,362.95"
Department of Health,NHS Sheffield CCG,31/10/2017,C&M-APMS Prem Notional Rent,PRC DELEGATED CO-COMMISSIONING,SHEFFIELD HEALTH & SOCIAL CARE NHS FOUNDATION TRUST,19140565,"2,804.17"
Department of Health,NHS Sheffield CCG,31/10/2017,C&M-PMS QOF Aspiration,PRC DELEGATED CO-COMMISSIONING,SHEFFIELD HEALTH & SOCIAL CARE NHS FOUNDATION TRUST,19140565,"12,657.74"
Department of Health,NHS Sheffield CCG,31/10/2017,C&M-APMS Contract Value,PRC DELEGATED CO-COMMISSIONING,SHEFFIELD HEALTH & SOCIAL CARE NHS FOUNDATION TRUST,19140567,"26,563.38"
Department of Health,NHS Sheffield CCG,31/10/2017,C&M-APMS OOH Opt Outs,PRC DELEGATED CO-COMMISSIONING,SHEFFIELD HEALTH & SOCIAL CARE NHS FOUNDATION TRUST,19140567,1.63
Department of Health,NHS Sheffield CCG,31/10/2017,C&M-PMS QOF Aspiration,PRC DELEGATED CO-COMMISSIONING,SHEFFIELD HEALTH & SOCIAL CARE NHS FOUNDATION TRUST,19140567,"1,256.00"
Department of Health,NHS Sheffield CCG,31/10/2017,Hcare Srv Rec Fdtn Trust-Contract Baseline,MENTAL HEALTH CONTRACTS,SHEFFIELD HEALTH & SOCIAL CARE NHS FOUNDATION TRUST,19228463,"6,013,427.33"
Department of Health,NHS Sheffield CCG,31/10/2017,Hcare Srv Rec Fdtn Trust-Contract Baseline,MENTAL HEALTH CONTRACTS,SHEFFIELD HEALTH & SOCIAL CARE NHS FOUNDATION TRUST,19262305,"43,493.80"
Department of Health,NHS Sheffield CCG,31/10/2017,Cont Care-Foundation Trust,CHC ADULT FULLY FUNDED,SHEFFIELD HEALTH & SOCIAL CARE NHS FOUNDATION TRUST,19376355,"249,977.83"
Department of Health,NHS Sheffield CCG,31/10/2017,Hcare Srv Rec Fdtn Trust-Contract Baseline,ACUTE COMMISSIONING,SHEFFIELD TEACHING HOSPITALS NHS FOUNDATION TRUST,19073190,"316,656.00"
Department of Health,NHS Sheffield CCG,31/10/2017,Hcare Srv Rec Fdtn Trust-Contract Baseline,ACUTE COMMISSIONING,SHEFFIELD TEACHING HOSPITALS NHS FOUNDATION TRUST,19073193,"3,826,133.00"
Department of Health,NHS Sheffield CCG,31/10/2017,Hcare Srv Rec Fdtn Trust-Contract Baseline,ACUTE COMMISSIONING,SHEFFIELD TEACHING HOSPITALS NHS FOUNDATION TRUST,19073196,"26,312,884.00"
Department of Health,NHS Sheffield CCG,31/10/2017,Hcare Srv Rec Fdtn Trust-Contract Baseline,ACUTE COMMISSIONING,SHEFFIELD TEACHING HOSPITALS NHS FOUNDATION TRUST,19073197,"1,101,688.00"
Department of Health,NHS Sheffield CCG,31/10/2017,Hcare Srv Rec Fdtn Trust-Non Contract,LONG TERM CONDITIONS,SHEFFIELD TEACHING HOSPITALS NHS FOUNDATION TRUST,19073200,"202,500.00"
Department of Health,NHS Sheffield CCG,31/10/2017,Programme Support Costs,COMMISSIONING - NON ACUTE,SHEFFIELD TEACHING HOSPITALS NHS FOUNDATION TRUST,19101858,"50,040.00"
Department of Health,NHS Sheffield CCG,31/10/2017,PREPYMT OVERSEAS NON EEA PATIENTS,RETRO CHC,SHEFFIELD TEACHING HOSPITALS NHS FOUNDATION TRUST,19354481,"25,518.00"
Department of Health,NHS Sheffield CCG,31/10/2017,Miscellaneous Expenditure (L9),BEREAVEMENT SERVICE,SHEFFIELD TEACHING HOSPITALS NHS FOUNDATION TRUST,19453218,167.37
Department of Health,NHS Sheffield CCG,31/10/2017,Seconded-Basic Sal-Staff fm oth org,BEREAVEMENT SERVICE,SHEFFIELD TEACHING HOSPITALS NHS FOUNDATION TRUST,19453218,"33,473.09"
Department of Health,NHS Sheffield CCG,31/10/2017,C&M-GMS Global Sum,PRC DELEGATED CO-COMMISSIONING,SHIREGREEN MEDICAL CENTRE,19389427,"55,665.46"
Department of Health,NHS Sheffield CCG,31/10/2017,C&M-GMS MPIG Correction Factor,PRC DELEGATED CO-COMMISSIONING,SHIREGREEN MEDICAL CENTRE,19389427,680.53
Department of Health,NHS Sheffield CCG,31/10/2017,C&M-GMS PCO Other,PRC DELEGATED CO-COMMISSIONING,SHIREGREEN MEDICAL CENTRE,19389427,452.6
Department of Health,NHS Sheffield CCG,31/10/2017,C&M-GMS Prem Cost Rent,PRC DELEGATED CO-COMMISSIONING,SHIREGREEN MEDICAL CENTRE,19389427,"1,792.33"
Department of Health,NHS Sheffield CCG,31/10/2017,C&M-GMS Prem Notional Rent,PRC DELEGATED CO-COMMISSIONING,SHIREGREEN MEDICAL CENTRE,19389427,"5,375.00"
Department of Health,NHS Sheffield CCG,31/10/2017,C&M-GMS Prem Rates,PRC DELEGATED CO-COMMISSIONING,SHIREGREEN MEDICAL CENTRE,19389427,"1,877.00"
Department of Health,NHS Sheffield CCG,31/10/2017,C&M-GMS QOF Aspiration,PRC DELEGATED CO-COMMISSIONING,SHIREGREEN MEDICAL CENTRE,19389427,"6,614.14"
Department of Health,NHS Sheffield CCG,31/10/2017,C&M-PMS Contract Value,PRC DELEGATED CO-COMMISSIONING,SLOAN MEDICAL CENTRE,19163800,"89,648.19"
Department of Health,NHS Sheffield CCG,31/10/2017,C&M-PMS Funding Differential Review,PRC DELEGATED CO-COMMISSIONING,SLOAN MEDICAL CENTRE,19163800,165.33
Department of Health,NHS Sheffield CCG,31/10/2017,C&M-PMS Out of Hours Opt Outs,PRC DELEGATED CO-COMMISSIONING,SLOAN MEDICAL CENTRE,19163800,34.36
Department of Health,NHS Sheffield CCG,31/10/2017,C&M-PMS PCO Locum Adop/Pat/Mat,PRC DELEGATED CO-COMMISSIONING,SLOAN MEDICAL CENTRE,19163800,"17,879.71"
Department of Health,NHS Sheffield CCG,31/10/2017,C&M-PMS PCO Other,PRC DELEGATED CO-COMMISSIONING,SLOAN MEDICAL CENTRE,19163800,523.7
Department of Health,NHS Sheffield CCG,31/10/2017,C&M-PMS Prem Actual Rent,PRC DELEGATED CO-COMMISSIONING,SLOAN MEDICAL CENTRE,19163800,"15,535.83"
Department of Health,NHS Sheffield CCG,31/10/2017,C&M-PMS Prem Notional Rent,PRC DELEGATED CO-COMMISSIONING,SLOAN MEDICAL CENTRE,19163800,608.33
Department of Health,NHS Sheffield CCG,31/10/2017,C&M-PMS Prem Rates,PRC DELEGATED CO-COMMISSIONING,SLOAN MEDICAL CENTRE,19163800,"2,990.00"
Department of Health,NHS Sheffield CCG,31/10/2017,C&M-PMS QOF Aspiration,PRC DELEGATED CO-COMMISSIONING,SLOAN MEDICAL CENTRE,19163800,"10,663.96"
Department of Health,NHS Sheffield CCG,31/10/2017,C&M-PMS Contract Value,PRC DELEGATED CO-COMMISSIONING,SOTHALL MEDICAL CENTRE,19140864,"68,917.89"
Department of Health,NHS Sheffield CCG,31/10/2017,C&M-PMS Funding Differential Review,PRC DELEGATED CO-COMMISSIONING,SOTHALL MEDICAL CENTRE,19140864,"3,463.83"
Department of Health,NHS Sheffield CCG,31/10/2017,C&M-PMS Out of Hours Opt Outs,PRC DELEGATED CO-COMMISSIONING,SOTHALL MEDICAL CENTRE,19140864,41.29
Department of Health,NHS Sheffield CCG,31/10/2017,C&M-PMS PCO Other,PRC DELEGATED CO-COMMISSIONING,SOTHALL MEDICAL CENTRE,19140864,523.7
Department of Health,NHS Sheffield CCG,31/10/2017,C&M-PMS Prem Healthcentre Rent,PRC DELEGATED CO-COMMISSIONING,SOTHALL MEDICAL CENTRE,19140864,"6,796.58"
Department of Health,NHS Sheffield CCG,31/10/2017,C&M-PMS Prem Notional Rent,PRC DELEGATED CO-COMMISSIONING,SOTHALL MEDICAL CENTRE,19140864,"5,116.67"
Department of Health,NHS Sheffield CCG,31/10/2017,C&M-PMS Prem Rates,PRC DELEGATED CO-COMMISSIONING,SOTHALL MEDICAL CENTRE,19140864,"1,000.00"
Department of Health,NHS Sheffield CCG,31/10/2017,C&M-PMS Prem Water Rates,PRC DELEGATED CO-COMMISSIONING,SOTHALL MEDICAL CENTRE,19140864,91.01
Department of Health,NHS Sheffield CCG,31/10/2017,C&M-PMS QOF Aspiration,PRC DELEGATED CO-COMMISSIONING,SOTHALL MEDICAL CENTRE,19140864,"8,821.42"
Department of Health,NHS Sheffield CCG,31/10/2017,Cont Care- Adult 100% Fully Funded,CHC ADULT FULLY FUNDED,SOUTH YORKSHIRE HOUSING ASSOCIATION LTD,19102211,"25,500.00"
Department of Health,NHS Sheffield CCG,31/10/2017,Cont Care-Physical Disab (<65),CHC ADULT FULLY FUNDED,SOUTH YORKSHIRE HOUSING ASSOCIATION LTD,19102225,"84,109.86"
Department of Health,NHS Sheffield CCG,31/10/2017,Clinical&Medical-Independent Sector,MENTAL HEALTH CONTRACTS,SOUTH YORKSHIRE HOUSING ASSOCIATION LTD,19113849,"34,435.00"
Department of Health,NHS Sheffield CCG,31/10/2017,Cont Care- Adult 100% Fully Funded,CHC ADULT FULLY FUNDED,SOUTH YORKSHIRE HOUSING ASSOCIATION LTD,19113866,"103,949.00"
Department of Health,NHS Sheffield CCG,31/10/2017,C&M-PMS Contract Value,PRC DELEGATED CO-COMMISSIONING,SOUTHEY GREEN MEDICAL CENTRE,19140866,"25,014.86"
Department of Health,NHS Sheffield CCG,31/10/2017,C&M-PMS Funding Differential Review,PRC DELEGATED CO-COMMISSIONING,SOUTHEY GREEN MEDICAL CENTRE,19140866,127.58
Department of Health,NHS Sheffield CCG,31/10/2017,C&M-PMS Prem Notional Rent,PRC DELEGATED CO-COMMISSIONING,SOUTHEY GREEN MEDICAL CENTRE,19140866,"3,362.50"
Department of Health,NHS Sheffield CCG,31/10/2017,C&M-PMS Prem Rates,PRC DELEGATED CO-COMMISSIONING,SOUTHEY GREEN MEDICAL CENTRE,19140866,"1,277.00"
Department of Health,NHS Sheffield CCG,31/10/2017,C&M-PMS QOF Aspiration,PRC DELEGATED CO-COMMISSIONING,SOUTHEY GREEN MEDICAL CENTRE,19140866,"2,875.40"
Department of Health,NHS Sheffield CCG,31/10/2017,C&M-GMS Cost of Drugs -Prescribing,LOCAL ENHANCED SERVICES,STANNINGTON MEDICAL CENTRE,19389431,60.34
Department of Health,NHS Sheffield CCG,31/10/2017,C&M-GMS Global Sum,PRC DELEGATED CO-COMMISSIONING,STANNINGTON MEDICAL CENTRE,19389431,"23,059.09"
Department of Health,NHS Sheffield CCG,31/10/2017,C&M-GMS PCO Other,PRC DELEGATED CO-COMMISSIONING,STANNINGTON MEDICAL CENTRE,19389431,384.5
Department of Health,NHS Sheffield CCG,31/10/2017,C&M-GMS Prem Notional Rent,PRC DELEGATED CO-COMMISSIONING,STANNINGTON MEDICAL CENTRE,19389431,"2,533.33"
Department of Health,NHS Sheffield CCG,31/10/2017,C&M-GMS Prem Rates,PRC DELEGATED CO-COMMISSIONING,STANNINGTON MEDICAL CENTRE,19389431,482
Department of Health,NHS Sheffield CCG,31/10/2017,C&M-GMS Prem Water Rates,PRC DELEGATED CO-COMMISSIONING,STANNINGTON MEDICAL CENTRE,19389431,206.49
Department of Health,NHS Sheffield CCG,31/10/2017,C&M-GMS Prof Fees Prescribing,PRC DELEGATED CO-COMMISSIONING,STANNINGTON MEDICAL CENTRE,19389431,13.88
Department of Health,NHS Sheffield CCG,31/10/2017,C&M-GMS QOF Aspiration,PRC DELEGATED CO-COMMISSIONING,STANNINGTON MEDICAL CENTRE,19389431,"3,253.08"
Department of Health,NHS Sheffield CCG,31/10/2017,C&M-GMS Cost of Drugs -Prescribing,LOCAL ENHANCED SERVICES,STONECROFT MEDICAL CENTRE,19389429,"2,253.34"
Department of Health,NHS Sheffield CCG,31/10/2017,C&M-GMS Global Sum,PRC DELEGATED CO-COMMISSIONING,STONECROFT MEDICAL CENTRE,19389429,"30,084.78"
Department of Health,NHS Sheffield CCG,31/10/2017,C&M-GMS MPIG Correction Factor,PRC DELEGATED CO-COMMISSIONING,STONECROFT MEDICAL CENTRE,19389429,927.38
Department of Health,NHS Sheffield CCG,31/10/2017,C&M-GMS PCO Other,PRC DELEGATED CO-COMMISSIONING,STONECROFT MEDICAL CENTRE,19389429,384.5
Department of Health,NHS Sheffield CCG,31/10/2017,C&M-GMS Prem Notional Rent,PRC DELEGATED CO-COMMISSIONING,STONECROFT MEDICAL CENTRE,19389429,"2,808.33"
Department of Health,NHS Sheffield CCG,31/10/2017,C&M-GMS Prem Rates,PRC DELEGATED CO-COMMISSIONING,STONECROFT MEDICAL CENTRE,19389429,"1,083.00"
Department of Health,NHS Sheffield CCG,31/10/2017,C&M-GMS Prem Water Rates,PRC DELEGATED CO-COMMISSIONING,STONECROFT MEDICAL CENTRE,19389429,467.52
Department of Health,NHS Sheffield CCG,31/10/2017,C&M-GMS Prof Fees Prescribing,PRC DELEGATED CO-COMMISSIONING,STONECROFT MEDICAL CENTRE,19389429,199
Department of Health,NHS Sheffield CCG,31/10/2017,C&M-GMS QOF Aspiration,PRC DELEGATED CO-COMMISSIONING,STONECROFT MEDICAL CENTRE,19389429,"4,224.91"
Department of Health,NHS Sheffield CCG,31/10/2017,Clinical&Medical-Independent Sector,MENTAL HEALTH CONTRACTS,SUSASH GB LTD T/A EAGLE HOUSE,19113855,"30,092.00"
Department of Health,NHS Sheffield CCG,31/10/2017,C&M-GMS Cost of Drugs -Prescribing,LOCAL ENHANCED SERVICES,TOTLEY RISE MEDICAL CENTRE,19389433,331.57
Department of Health,NHS Sheffield CCG,31/10/2017,C&M-GMS Global Sum,PRC DELEGATED CO-COMMISSIONING,TOTLEY RISE MEDICAL CENTRE,19389433,"22,215.43"
Department of Health,NHS Sheffield CCG,31/10/2017,C&M-GMS MPIG Correction Factor,PRC DELEGATED CO-COMMISSIONING,TOTLEY RISE MEDICAL CENTRE,19389433,154.7
Department of Health,NHS Sheffield CCG,31/10/2017,C&M-GMS PCO Locum Adop/Pat/Mat,PRC DELEGATED CO-COMMISSIONING,TOTLEY RISE MEDICAL CENTRE,19389433,"5,104.12"
Department of Health,NHS Sheffield CCG,31/10/2017,C&M-GMS PCO Other,PRC DELEGATED CO-COMMISSIONING,TOTLEY RISE MEDICAL CENTRE,19389433,384.5
Department of Health,NHS Sheffield CCG,31/10/2017,C&M-GMS Prem Notional Rent,PRC DELEGATED CO-COMMISSIONING,TOTLEY RISE MEDICAL CENTRE,19389433,"1,491.67"
Department of Health,NHS Sheffield CCG,31/10/2017,C&M-GMS Prem Rates,PRC DELEGATED CO-COMMISSIONING,TOTLEY RISE MEDICAL CENTRE,19389433,136
Department of Health,NHS Sheffield CCG,31/10/2017,C&M-GMS Prem Water Rates,PRC DELEGATED CO-COMMISSIONING,TOTLEY RISE MEDICAL CENTRE,19389433,59.35
Department of Health,NHS Sheffield CCG,31/10/2017,C&M-GMS Prof Fees Prescribing,PRC DELEGATED CO-COMMISSIONING,TOTLEY RISE MEDICAL CENTRE,19389433,48.59
Department of Health,NHS Sheffield CCG,31/10/2017,C&M-GMS QOF Aspiration,PRC DELEGATED CO-COMMISSIONING,TOTLEY RISE MEDICAL CENTRE,19389433,"2,269.92"
Department of Health,NHS Sheffield CCG,31/10/2017,C&M-GMS Cost of Drugs -Prescribing,LOCAL ENHANCED SERVICES,TRAMWAYS MEDICAL CENTRE,19389435,"1,939.69"
Department of Health,NHS Sheffield CCG,31/10/2017,C&M-GMS DES Extended Hours Access,PRC DELEGATED CO-COMMISSIONING,TRAMWAYS MEDICAL CENTRE,19389435,"4,080.25"
Department of Health,NHS Sheffield CCG,31/10/2017,C&M-GMS Global Sum,PRC DELEGATED CO-COMMISSIONING,TRAMWAYS MEDICAL CENTRE,19389435,"58,619.02"
Department of Health,NHS Sheffield CCG,31/10/2017,C&M-GMS PCO Other,PRC DELEGATED CO-COMMISSIONING,TRAMWAYS MEDICAL CENTRE,19389435,452.6
Department of Health,NHS Sheffield CCG,31/10/2017,C&M-GMS Prem Cost Rent,PRC DELEGATED CO-COMMISSIONING,TRAMWAYS MEDICAL CENTRE,19389435,"4,012.75"
Department of Health,NHS Sheffield CCG,31/10/2017,C&M-GMS Prem Rates,PRC DELEGATED CO-COMMISSIONING,TRAMWAYS MEDICAL CENTRE,19389435,889
Department of Health,NHS Sheffield CCG,31/10/2017,C&M-GMS Prof Fees Prescribing,PRC DELEGATED CO-COMMISSIONING,TRAMWAYS MEDICAL CENTRE,19389435,199.01
Department of Health,NHS Sheffield CCG,31/10/2017,C&M-GMS QOF Aspiration,PRC DELEGATED CO-COMMISSIONING,TRAMWAYS MEDICAL CENTRE,19389435,"6,336.58"
Department of Health,NHS Sheffield CCG,31/10/2017,Cont Care-Funded Nursing Care Allow,FUNDED NURSING CARE,ULTIMA CARE CENTRES (NO1) LTD,19102296,"37,034.80"
Department of Health,NHS Sheffield CCG,31/10/2017,C&M-PMS Contract Value,PRC DELEGATED CO-COMMISSIONING,UNIVERSITY HEALTH SERVICE,19163801,"142,358.88"
Department of Health,NHS Sheffield CCG,31/10/2017,C&M-PMS Out of Hours Opt Outs,PRC DELEGATED CO-COMMISSIONING,UNIVERSITY HEALTH SERVICE,19163801,507.65
Department of Health,NHS Sheffield CCG,31/10/2017,C&M-PMS PCO Locum Adop/Pat/Mat,PRC DELEGATED CO-COMMISSIONING,UNIVERSITY HEALTH SERVICE,19163801,"1,350.00"
Department of Health,NHS Sheffield CCG,31/10/2017,C&M-PMS Prem Notional Rent,PRC DELEGATED CO-COMMISSIONING,UNIVERSITY HEALTH SERVICE,19163801,"15,833.33"
Department of Health,NHS Sheffield CCG,31/10/2017,C&M-PMS QOF Aspiration,PRC DELEGATED CO-COMMISSIONING,UNIVERSITY HEALTH SERVICE,19163801,"3,640.26"
Department of Health,NHS Sheffield CCG,31/10/2017,C&M-GMS Cost of Drugs -Prescribing,LOCAL ENHANCED SERVICES,UPPERTHORPE MEDICAL CENTRE,19389437,"1,485.39"
Department of Health,NHS Sheffield CCG,31/10/2017,C&M-GMS Global Sum,PRC DELEGATED CO-COMMISSIONING,UPPERTHORPE MEDICAL CENTRE,19389437,"76,147.36"
Department of Health,NHS Sheffield CCG,31/10/2017,C&M-GMS MPIG Correction Factor,PRC DELEGATED CO-COMMISSIONING,UPPERTHORPE MEDICAL CENTRE,19389437,"1,988.60"
Department of Health,NHS Sheffield CCG,31/10/2017,C&M-GMS Prem Notional Rent,PRC DELEGATED CO-COMMISSIONING,UPPERTHORPE MEDICAL CENTRE,19389437,"2,497.83"
Department of Health,NHS Sheffield CCG,31/10/2017,C&M-GMS Prem Rates,PRC DELEGATED CO-COMMISSIONING,UPPERTHORPE MEDICAL CENTRE,19389437,"2,044.00"
Department of Health,NHS Sheffield CCG,31/10/2017,C&M-GMS Prem Water Rates,PRC DELEGATED CO-COMMISSIONING,UPPERTHORPE MEDICAL CENTRE,19389437,111.36
Department of Health,NHS Sheffield CCG,31/10/2017,C&M-GMS Prof Fees Prescribing,PRC DELEGATED CO-COMMISSIONING,UPPERTHORPE MEDICAL CENTRE,19389437,249.92
Department of Health,NHS Sheffield CCG,31/10/2017,C&M-GMS QOF Aspiration,PRC DELEGATED CO-COMMISSIONING,UPPERTHORPE MEDICAL CENTRE,19389437,"9,309.14"
Department of Health,NHS Sheffield CCG,31/10/2017,C&M-PMS Contract Value,PRC DELEGATED CO-COMMISSIONING,UPWELL STREET SURGERY,19140871,"37,326.83"
Department of Health,NHS Sheffield CCG,31/10/2017,C&M-PMS DES Learn Dsblty Hlth Chk,PRC DELEGATED CO-COMMISSIONING,UPWELL STREET SURGERY,19140871,"1,160.00"
Department of Health,NHS Sheffield CCG,31/10/2017,C&M-PMS Funding Differential Review,PRC DELEGATED CO-COMMISSIONING,UPWELL STREET SURGERY,19140871,"2,004.50"
Department of Health,NHS Sheffield CCG,31/10/2017,C&M-PMS Out of Hours Opt Outs,PRC DELEGATED CO-COMMISSIONING,UPWELL STREET SURGERY,19140871,46.71
Department of Health,NHS Sheffield CCG,31/10/2017,C&M-PMS PCO Other,PRC DELEGATED CO-COMMISSIONING,UPWELL STREET SURGERY,19140871,384.5
Department of Health,NHS Sheffield CCG,31/10/2017,C&M-PMS Prem Actual Rent,PRC DELEGATED CO-COMMISSIONING,UPWELL STREET SURGERY,19140871,"8,137.50"
Department of Health,NHS Sheffield CCG,31/10/2017,C&M-PMS Prem Notional Rent,PRC DELEGATED CO-COMMISSIONING,UPWELL STREET SURGERY,19140871,"8,137.50"
Department of Health,NHS Sheffield CCG,31/10/2017,C&M-PMS Prem Rates,PRC DELEGATED CO-COMMISSIONING,UPWELL STREET SURGERY,19140871,984
Department of Health,NHS Sheffield CCG,31/10/2017,C&M-PMS Prem Water Rates,PRC DELEGATED CO-COMMISSIONING,UPWELL STREET SURGERY,19140871,164.48
Department of Health,NHS Sheffield CCG,31/10/2017,C&M-PMS QOF Aspiration,PRC DELEGATED CO-COMMISSIONING,UPWELL STREET SURGERY,19140871,"4,877.64"
Department of Health,NHS Sheffield CCG,31/10/2017,C&M-PMS Contract Value,PRC DELEGATED CO-COMMISSIONING,VALLEY MEDICAL CENTRE,19140873,"74,774.73"
Department of Health,NHS Sheffield CCG,31/10/2017,C&M-PMS Funding Differential Review,PRC DELEGATED CO-COMMISSIONING,VALLEY MEDICAL CENTRE,19140873,271.17
Department of Health,NHS Sheffield CCG,31/10/2017,C&M-PMS Out of Hours Opt Outs,PRC DELEGATED CO-COMMISSIONING,VALLEY MEDICAL CENTRE,19140873,0.6
Department of Health,NHS Sheffield CCG,31/10/2017,C&M-PMS Prem Rates,PRC DELEGATED CO-COMMISSIONING,VALLEY MEDICAL CENTRE,19140873,"1,083.00"
Department of Health,NHS Sheffield CCG,31/10/2017,C&M-PMS Prem Water Rates,PRC DELEGATED CO-COMMISSIONING,VALLEY MEDICAL CENTRE,19140873,250.83
Department of Health,NHS Sheffield CCG,31/10/2017,C&M-PMS QOF Aspiration,PRC DELEGATED CO-COMMISSIONING,VALLEY MEDICAL CENTRE,19140873,"9,125.55"
Department of Health,NHS Sheffield CCG,31/10/2017,C&M-GMS Cost of Drugs -Prescribing,LOCAL ENHANCED SERVICES,WALKLEY HOUSE MEDICAL CENTRE,19389443,916.44
Department of Health,NHS Sheffield CCG,31/10/2017,C&M-GMS Global Sum,PRC DELEGATED CO-COMMISSIONING,WALKLEY HOUSE MEDICAL CENTRE,19389443,"78,378.53"
Department of Health,NHS Sheffield CCG,31/10/2017,C&M-GMS Prem Notional Rent,PRC DELEGATED CO-COMMISSIONING,WALKLEY HOUSE MEDICAL CENTRE,19389443,"5,581.34"
Department of Health,NHS Sheffield CCG,31/10/2017,C&M-GMS Prem Rates,PRC DELEGATED CO-COMMISSIONING,WALKLEY HOUSE MEDICAL CENTRE,19389443,"4,259.20"
Department of Health,NHS Sheffield CCG,31/10/2017,C&M-GMS Prof Fees Prescribing,PRC DELEGATED CO-COMMISSIONING,WALKLEY HOUSE MEDICAL CENTRE,19389443,157.34
Department of Health,NHS Sheffield CCG,31/10/2017,C&M-GMS QOF Aspiration,PRC DELEGATED CO-COMMISSIONING,WALKLEY HOUSE MEDICAL CENTRE,19389443,"8,922.54"
Department of Health,NHS Sheffield CCG,31/10/2017,C&M-GMS Cost of Drugs -Prescribing,LOCAL ENHANCED SERVICES,WHITE HOUSE SURGERY SHEFFIELD,19389441,"1,070.75"
Department of Health,NHS Sheffield CCG,31/10/2017,C&M-GMS Global Sum,PRC DELEGATED CO-COMMISSIONING,WHITE HOUSE SURGERY SHEFFIELD,19389441,"47,534.58"
Department of Health,NHS Sheffield CCG,31/10/2017,C&M-GMS MPIG Correction Factor,PRC DELEGATED CO-COMMISSIONING,WHITE HOUSE SURGERY SHEFFIELD,19389441,"2,086.94"
Department of Health,NHS Sheffield CCG,31/10/2017,C&M-GMS Prem Notional Rent,PRC DELEGATED CO-COMMISSIONING,WHITE HOUSE SURGERY SHEFFIELD,19389441,"9,104.17"
Department of Health,NHS Sheffield CCG,31/10/2017,C&M-GMS Prem Rates,PRC DELEGATED CO-COMMISSIONING,WHITE HOUSE SURGERY SHEFFIELD,19389441,"2,013.00"
Department of Health,NHS Sheffield CCG,31/10/2017,C&M-GMS Prof Fees Prescribing,PRC DELEGATED CO-COMMISSIONING,WHITE HOUSE SURGERY SHEFFIELD,19389441,215.2
Department of Health,NHS Sheffield CCG,31/10/2017,C&M-GMS QOF Aspiration,PRC DELEGATED CO-COMMISSIONING,WHITE HOUSE SURGERY SHEFFIELD,19389441,"6,083.99"
Department of Health,NHS Sheffield CCG,31/10/2017,Cont Care-Physical Disab (<65),CHC ADULT FULLY FUNDED,WILLOWBECK HEALTH CARE LTD,19102366,"162,436.66"
Department of Health,NHS Sheffield CCG,31/10/2017,C&M-PMS Contract Value,PRC DELEGATED CO-COMMISSIONING,WINCOBANK MEDICAL CENTRE,19140878,"58,927.15"
Department of Health,NHS Sheffield CCG,31/10/2017,C&M-PMS DES Extended Hours Access,PRC DELEGATED CO-COMMISSIONING,WINCOBANK MEDICAL CENTRE,19140878,"3,565.83"
Department of Health,NHS Sheffield CCG,31/10/2017,C&M-PMS Funding Differential Review,PRC DELEGATED CO-COMMISSIONING,WINCOBANK MEDICAL CENTRE,19140878,9.92
Department of Health,NHS Sheffield CCG,31/10/2017,C&M-PMS Prem Healthcentre Rent,PRC DELEGATED CO-COMMISSIONING,WINCOBANK MEDICAL CENTRE,19140878,"42,475.13"
Department of Health,NHS Sheffield CCG,31/10/2017,C&M-PMS QOF Aspiration,PRC DELEGATED CO-COMMISSIONING,WINCOBANK MEDICAL CENTRE,19140878,"6,934.01"
Department of Health,NHS Sheffield CCG,31/10/2017,C&M-PMS Contract Value,PRC DELEGATED CO-COMMISSIONING,WOODHOUSE HEALTH CENTRE,19163802,"95,330.65"
Department of Health,NHS Sheffield CCG,31/10/2017,C&M-PMS Funding Differential Review,PRC DELEGATED CO-COMMISSIONING,WOODHOUSE HEALTH CENTRE,19163802,"2,776.33"
Department of Health,NHS Sheffield CCG,31/10/2017,C&M-PMS Out of Hours Opt Outs,PRC DELEGATED CO-COMMISSIONING,WOODHOUSE HEALTH CENTRE,19163802,13.8
Department of Health,NHS Sheffield CCG,31/10/2017,C&M-PMS PCO Other,PRC DELEGATED CO-COMMISSIONING,WOODHOUSE HEALTH CENTRE,19163802,"3,665.90"
Department of Health,NHS Sheffield CCG,31/10/2017,C&M-PMS Prem Notional Rent,PRC DELEGATED CO-COMMISSIONING,WOODHOUSE HEALTH CENTRE,19163802,"6,338.58"
Department of Health,NHS Sheffield CCG,31/10/2017,C&M-PMS QOF Aspiration,PRC DELEGATED CO-COMMISSIONING,WOODHOUSE HEALTH CENTRE,19163802,"14,743.27"
Department of Health,NHS Sheffield CCG,31/10/2017,C&M-PMS Contract Value,PRC DELEGATED CO-COMMISSIONING,WOODSEATS MEDICAL CENTRE,19140876,"65,743.07"
Department of Health,NHS Sheffield CCG,31/10/2017,C&M-PMS Funding Differential Review,PRC DELEGATED CO-COMMISSIONING,WOODSEATS MEDICAL CENTRE,19140876,397.08
Department of Health,NHS Sheffield CCG,31/10/2017,C&M-PMS PCO Other,PRC DELEGATED CO-COMMISSIONING,WOODSEATS MEDICAL CENTRE,19140876,452.6
Department of Health,NHS Sheffield CCG,31/10/2017,C&M-PMS Prem Notional Rent,PRC DELEGATED CO-COMMISSIONING,WOODSEATS MEDICAL CENTRE,19140876,"24,540.10"
Department of Health,NHS Sheffield CCG,31/10/2017,C&M-PMS Prem Rates,PRC DELEGATED CO-COMMISSIONING,WOODSEATS MEDICAL CENTRE,19140876,"1,233.00"
Department of Health,NHS Sheffield CCG,31/10/2017,C&M-PMS QOF Aspiration,PRC DELEGATED CO-COMMISSIONING,WOODSEATS MEDICAL CENTRE,19140876,"8,124.33"
Department of Health,NHS Sheffield CCG,31/10/2017,Hcare Srv Rec NHS Trust-Contract Baseline,AMBULANCE SERVICES,YORKSHIRE AMBULANCE SERVICE NHS TRUST,19073171,"123,979.00"
Department of Health,NHS Sheffield CCG,31/10/2017,Hcare Srv Rec NHS Trust-Contract Baseline,AMBULANCE SERVICES,YORKSHIRE AMBULANCE SERVICE NHS TRUST,19073174,"1,440,139.00"
Department of Health,NHS Sheffield CCG,31/10/2017,Hcare Srv Rec NHS Trust-Contract Baseline,PATIENT TRANSPORT,YORKSHIRE AMBULANCE SERVICE NHS TRUST,19073176,"255,744.52"
Department of Health,NHS Sheffield CCG,31/10/2017,Hcare Srv Rec NHS Trust-Contract Baseline,NHS 111,YORKSHIRE AMBULANCE SERVICE NHS TRUST,19073181,"98,607.99"
Department of Health,NHS Sheffield CCG,31/10/2017,Hcare Srv Rec NHS Trust-CQUIN,AMBULANCE SERVICES,YORKSHIRE AMBULANCE SERVICE NHS TRUST,19073184,"27,566.00"
,,,,,,,"52,934,582.34"
